{"text_format":"2","workbook":"xlsx","n_sheets":8,"sheets":["new","survey","RA_Website","erstmal nicht","old","Dez18","Jan19","Evidenz fehlt"],"not_rendered":{"charts":0,"images":0,"macros":0,"external_links":0,"defined_names":7,"comments":0,"pivot_tables":0},"unopened":[],"bounds":{"document_bytes":16777216,"sheet_cells":100000,"run_cost":"one","rows_first":2000,"rows_last":500,"rows_between":2000,"halvings":0,"cell_chars":16384,"cell_head_chars":4096},"cells_cut":0,"cells_raw":0,"read":"whole","date_system":"1900"}

{"sheet":"new","index":0,"n_rows":227,"n_cols":13,"rows_kept":227,"cut":false,"hidden":false,"merged":[]}
["Bereich","Risikokategorie","mögliche Risiko-Endpunkte","Erläuterung/Beispiel","consumer focus","fgr","dread","natural","positive","evidence perspective","sum score","candidate","Ref. Ex."]
["Gesellschaft, Soziales und Politik","Automatisierung","Arbeitsplatzverlust","Berufsart",0.5,1,0,0,0,0.5,{"$f":"E2+F2+G2+H2+I2+J2","v":2},1]
["Gesellschaft, Soziales und Politik","Digitalisierung","Arbeitsplatzverlust, Anonymitätsverlust","Qualifikationsmängel im Umgang",1,1,0,0,0,0.5,2.5,1]
["Gesellschaft, Soziales und Politik","Einsamkeit","Morbidität, Mortalität, Delinquenz, Sucht","Singlehaushalte im Alter",0.5,1,0,0,0,1,2.5]
["Gesellschaft, Soziales und Politik","Entwicklung von Kindern","Morbidität, Mortalität, Delinquenz, Armut, Behinderungen","Elternstatus, Schulzone",0.5,0,0,0,0,0.5,1]
["Gesellschaft, Soziales und Politik","Kriege","Ereignisse, Morbidität, Mortalität","Atomkrieg",0,0,1,0,0,0,1,null,"Slovic et al., 1980"]
["Gesellschaft, Soziales und Politik","Kriminalität","Kriminalitätsfolgen","Cyberkriminalität: Identitätsdiebstahl",1,1,0,0,0,1,3,1]
["Gesellschaft, Soziales und Politik","Kriminalität","Kriminalitätsfolgen","Cyberkriminalität: Missbrauch intimer Daten",1,1,0,0,0,1,3,1]
["Gesellschaft, Soziales und Politik","Kriminalität","Kriminalitätsfolgen","Cyberkriminalität: Onlinebanking",1,1,0,0,0,1,3,1]
["Gesellschaft, Soziales und Politik","Kriminalität","Kriminalitätsfolgen","Kreditkartenbetrug auf Auslandsreise",1,{"$nulls":6},1]
["Gesellschaft, Soziales und Politik","Kriminalität","Kriminalitätsfolgen","Kriminalitätsarten, e.g. Homicides ",1,1,0,0,0,1,{"$f":"E11+F11+G11+H11+I11+J11","v":3},1,"Bastide et al., 1989"]
["Gesellschaft, Soziales und Politik","Kriminalität","Opfer, Mortalität, Kriminalitätsfolgen, Verletzungen","Family violence/abuse",0.5,1,0,0,0,0.5,2,1,"Radionova et al., 2009"]
["Gesellschaft, Soziales und Politik","Kriminalität","Opfer, Mortalität, Kriminalitätsfolgen, Verletzungen","Kidnapping of children",0.5,0,0,0,0,0.5,1,1,"Radionova et al., 2009"]
["Gesellschaft, Soziales und Politik","Kriminalität","Opfer, Mortalität, Kriminalitätsfolgen, Verletzungen","Kriminalität: Attacks in the Subway",1,1,0,0,0,1,3,1,"Radionova et al., 2009"]
["Gesellschaft, Soziales und Politik","Migration","Ereignisse, Armut, soziale Spannungen","Flüchtlinge",0.5,1,0,0,0,0.5,2,null,"Al-Rawad & Al Khattab, 2015"]
["Gesellschaft, Soziales und Politik","Nichtlineare Entwicklungen","Ereignisse, Armut","Zinsen",1,1,0,0.5,0,0.5,3]
["Gesellschaft, Soziales und Politik","Persönlichkeitseigenschaften","Delinquenz, Armut","Depressivität",0.5,1,0,0,0,1,2.5,null,"Al-Rawad & Al Khattab, 2015"]
["Gesellschaft, Soziales und Politik","Persönlichkeitseigenschaften","Delinquenz, Armut","Egozentrismus",0.5,1,0,0,0,1,2.5]
["Gesellschaft, Soziales und Politik","Persönlichkeitseigenschaften","Delinquenz, Armut","Neugier",0.5,1,0,0,0,1,2.5]
["Gesellschaft, Soziales und Politik","Politik","Morbidität","Demonstrationen",0,1,0,0,0,0,1,null,"Radionova et al., 2009"]
["Gesellschaft, Soziales und Politik","Probleme mit Eltern","Morbidität, Mortalität, Delinquenz, Armut","Pflege",0.5,1,0,0,0,1,2.5]
["Gesellschaft, Soziales und Politik","Probleme mit Kindern","Morbidität, Mortalität, Delinquenz, Armut","ADHS",0.5,1,0,0,0,1,2.5]
["Gesellschaft, Soziales und Politik","Religion","Morbidität, Mortalität, Delinquenz, Armut","Christen, Atheisten, Muslime, Juden",0,1,0,0,0,0.5,1.5]
["Gesellschaft, Soziales und Politik","Terrorismus","Ereignisse, Morbidität, Mortalität","Bombenanschläge, Schiessereien",0.5,1,1,0,0,0.5,3,null,"Slovic et al., 1980"]
["Gesundheit und Ernährung","alternative Medizin","Morbidität, Mortalität","Akupunktur",0.5,1,0,0,0,0.5,2]
["Gesundheit und Ernährung","alternative Medizin","Morbidität, Mortalität","homöopathische Mittel",0.5,1,0,0,0,0.5,2]
["Gesundheit und Ernährung","Behandlungsfolgen","Ereignisse, Mortalität, Morbidität","Blood transfusions",0.5,0,0,0,0,0.5,1,null,"Flynn et al., 1994"]
["Gesundheit und Ernährung","Behandlungsfolgen","Ereignisse, Mortalität, Morbidität","Impfschäden, e.g. MMR, HPV",0.5,1,0,0,0,1,2.5,null,"Al-Rawad & Al Khattab, 2015"]
["Gesundheit und Ernährung","Behandlungsfolgen","Ereignisse, Mortalität, Morbidität","Narkoseschäden",0.5,1,0,0,0,1,2.5,null,"Chauvin et al., 2007a"]
["Gesundheit und Ernährung","Behandlungsfolgen","Ereignisse, Mortalität, Morbidität","Strahlungsschäden, e.g. Radiation therapy, X-ray",0.5,0,0,0,0,0.5,1,null,"Chauvin et al., 2007b"]
["Gesundheit und Ernährung","Chirurgie","Ereignisse, Mortalität, Morbidität","Operationsfolgen",0.5,0,0,0,0,1,1.5,null,"Chauvin et al., 2007a"]
["Gesundheit und Ernährung","Empfängnisverhütung","Ereignisse, Morbidität","Antibabypille mit neuen Gestagenen",0.5,0,0,0,0,1,1.5,null,"Chauvin et al., 2007b"]
["Gesundheit und Ernährung","Epidemien","Ereignisse, Mortalität, Morbidität","Masern",0.5,0,0,0,0,1,1.5]
["Gesundheit und Ernährung","Ernährungsstrategien und Diäten","Morbidität","Allergieentwicklung",1,1,0,0,0,0.5,2.5,null,"Hohl & Gaskell, 2008"]
["Gesundheit und Ernährung","Ernährungsstrategien und Diäten","Morbidität","Zusatzstoffe",1,0,0,0,0,0.5,1.5,null,"Hohl & Gaskell, 2008"]
["Gesundheit und Ernährung","Ernährungsstrategien und Diäten","Mortalität, Morbidität","Atkinson",1,1,0,0,0,0.5,2.5]
["Gesundheit und Ernährung","Ernährungsstrategien und Diäten","Mortalität, Morbidität","Exported Food that has Passed its Use-By Date",1,0,0,0,0,0.5,1.5,null,"Radionova et al., 2009"]
["Gesundheit und Ernährung","Ernährungsstrategien und Diäten","Mortalität, Morbidität","vegane Lebensweise",1,1,0,0,0,0.5,2.5]
["Gesundheit und Ernährung","Food colorants ","Morbidität",null,1,1,0,0,0,0.5,2.5,null,"Chauvin et al., 2007a"]
["Gesundheit und Ernährung","Food pervervatives ","Morbidität",null,1]
["Gesundheit und Ernährung","Freizeitunfälle","Ereignisse, Morbidität","Tollwut",1,0,0,1,0,1,{"$f":"E41+F41+G41+H41+I41+J41","v":3}]
["Gesundheit und Ernährung","Freizeitunfälle","Ereignisse, Mortalität, Morbidität","Ertrinken",1,1,0,0,0,1,3,1,"Al-Rawad & Al Khattab, 2015"]
["Gesundheit und Ernährung","Freizeitunfälle","Ereignisse, Mortalität, Morbidität","Feuerwerkskörper",0.5,0,0,0,0,1,1.5,null,"Chauvin et al., 2007b"]
["Gesundheit und Ernährung","Freizeitunfälle","Ereignisse, Mortalität, Morbidität","Haiangriffe",1,1,0,0,0,1,3,1]
["Gesundheit und Ernährung","Freizeitunfälle","Ereignisse, Mortalität, Morbidität","Kellertreppen",1,0,0,0,0,1,2,1]
["Gesundheit und Ernährung","Freizeitunfälle","Ereignisse, Mortalität, Morbidität","Kuhunfälle",1,1,0,1,0,1,4,1]
["Gesundheit und Ernährung","Freizeitunfälle","Ereignisse, Mortalität, Morbidität","Sonnenbaden, Hautkrebs",0.5,0,0,0,0,1,1.5,null,"Chauvin et al., 2007b"]
["Gesundheit und Ernährung","Freizeitunfälle","Ereignisse, Mortalität, Morbidität","Sportunfälle (z.B. Klettern)",1,0,0,0,0,1,2,1,"Karpowicz-Lazreg et al., 1993"]
["Gesundheit und Ernährung","Freizeitunfälle","Morbidität","Air Conditioning (in Public Areas)",1,1,0,0,0,0,2,null,"Radionova et al., 2009"]
["Gesundheit und Ernährung","Freizeitunfälle","Morbidität, Mortalität","Achterbahnen",1,0,0,0,0,0.5,1.5,1,"Karpowicz-Lazreg et al., 1993"]
["Gesundheit und Ernährung","Freizeitunfälle","Morbidität, Mortalität","Boxing",0.5,0,0,0,0,0.5,1,1,"Karpowicz-Lazreg et al., 1993"]
["Gesundheit und Ernährung","Freizeitunfälle","Morbidität, Mortalität","Christmas tree lights",1,0,0,0,0,0.5,1.5,1,"Karpowicz-Lazreg et al., 1993"]
["Gesundheit und Ernährung","Freizeitunfälle","Morbidität, Mortalität","Downhill skiing",0.5,0,0,0,0,1,1.5,1,"Karpowicz-Lazreg et al., 1993"]
["Gesundheit und Ernährung","Freizeitunfälle","Morbidität, Mortalität","Jagdunfälle",0.5,0,0,0,0,1,1.5,1,"Karpowicz-Lazreg et al., 1993"]
["Gesundheit und Ernährung","Freizeitunfälle","Morbidität, Mortalität","Power mowers",1,0,0,0,0,0.5,1.5,1,"Karpowicz-Lazreg et al., 1993"]
["Gesundheit und Ernährung","Freizeitunfälle","Morbidität, Mortalität","Skateboards",1,0,0,0,0,0.5,1.5,1,"Karpowicz-Lazreg et al., 1993"]
["Gesundheit und Ernährung","Freizeitunfälle","Morbidität, Mortalität","Sport: Jogging",1,0,0,0,0,0.5,1.5,1,"Radionova et al., 2009"]
["Gesundheit und Ernährung","Freizeitunfälle","Morbidität, Mortalität","Taucher",1,0,0,0,0,0.5,1.5,1,"Radionova et al., 2009"]
["Gesundheit und Ernährung","Geburt","Ereignisse, Mortalität, Morbidität","Geburtsfolgen, Kindeswohl",0.5,0,0,0,0,1,1.5,null,"Chauvin et al., 2007b"]
["Gesundheit und Ernährung","Hair dying ",null,null,1,1,0,0,0,0.5,2.5,null,"Chauvin et al., 2007a"]
["Gesundheit und Ernährung","Haushaltsunfälle","Ereignisse, Mortalität, Morbidität","Equipments in Bad State",1,0,0,0,0,0,1,1,"Radionova et al., 2009"]
["Gesundheit und Ernährung","Haushaltsunfälle","Ereignisse, Mortalität, Morbidität","Fensterputzen, Leiterstürze, Accidents at home",1,0,0,0,0,1,2,1,"Bastide et al., 1989"]
["Gesundheit und Ernährung","Haushaltsunfälle","Morbidität","Hygienemängel",0.5,0,0,0,0,0.5,1,null,"Hohl & Gaskell, 2008"]
["Gesundheit und Ernährung","Hygiene","Ereignisse, Mortalität, Morbidität","Hygieneverstöße",0.5,1,0,0,0,1,2.5]
["Gesundheit und Ernährung","Konservierungsstoffe","Ereignisse, Mortalität, Morbidität","E250 Natriumnitrit",0.5,1,0,0,0,1,2.5,null,"Al-Rawad & Al Khattab, 2015"]
["Gesundheit und Ernährung","Lebensmittelzusätze","Morbidität","Water fluoridation",0.5,0,0,0,0,0.5,1,null,"Karpowicz-Lazreg et al., 1993"]
["Gesundheit und Ernährung","Mangelernährung","Mortalität, Morbidität",null,0.5,0.5,0,0,0,0.5,1.5,null,"Slovic et al., 1980"]
["Gesundheit und Ernährung","Medizinische Fehler","Ereignisse, Mortalität, Morbidität","Fehlmedikation",0.5,1,0,0,0,1,2.5]
["Gesundheit und Ernährung","Mortalität","Ereignisse, Mortalität, Morbidität","Duschen",1,0,0,0,0,1,2,1]
["Gesundheit und Ernährung","Psychische Erkrankungen","Ereignisse, Mortalität, Morbidität, Opfer, Risikofaktoren","Depression",0.5,0,0,0,0,1,1.5]
["Gesundheit und Ernährung","Psychische Erkrankungen","Ereignisse, Mortalität, Morbidität, Opfer, Risikofaktoren","Süchte",0.5,0,0,0,0,1,1.5]
["Gesundheit und Ernährung","Resistente Erreger","Ereignisse, Mortalität, Morbidität","MRSA-Keime",0.5,1,0,0,0,1,2.5]
["Gesundheit und Ernährung","Resistente Keime","Morbidität, Mortalität","Antibiotics",1,1,0,0,0,0.5,{"$f":"E73+F73+G73+H73+I73+J73","v":2.5},null,"Karpowicz-Lazreg et al., 1993"]
["Gesundheit und Ernährung","Sexual relationships with multiple partners ","Ereignisse, Mortalität, Morbidität",null,0.5,1,0,0,0,0.5,2,null,"Chauvin et al., 2007a"]
["Gesundheit und Ernährung","Somatische Erkrankungen","Ereignisse, Mortalität, Morbidität","Asthma and bronchitis",0.5,0,0,0.5,0,1,2,null,"Bastide et al., 1989"]
["Gesundheit und Ernährung","Somatische Erkrankungen","Ereignisse, Mortalität, Morbidität","Cerebro-vascular diseases",0.5,0,0,0.5,0,1,2,null,"Bastide et al., 1989"]
["Gesundheit und Ernährung","Somatische Erkrankungen","Ereignisse, Mortalität, Morbidität","Cirrhosis ",0.5,0,0,0.5,0,1,2,null,"Bastide et al., 1989"]
["Gesundheit und Ernährung","Somatische Erkrankungen","Ereignisse, Mortalität, Morbidität","Congenital malformations",0.5,0,0,0.5,0,1,2,null,"Bastide et al., 1989"]
["Gesundheit und Ernährung","Somatische Erkrankungen","Ereignisse, Mortalität, Morbidität","CVD, Herzerkrankungen",0.5,1,0,0,0,1,2.5,1,"Bastide et al., 1989"]
["Gesundheit und Ernährung","Somatische Erkrankungen","Ereignisse, Mortalität, Morbidität","Diabetis",0.5,0,0,0.5,0,1,2,null,"Bastide et al., 1989"]
["Gesundheit und Ernährung","Somatische Erkrankungen","Ereignisse, Mortalität, Morbidität","Excess cold",0.5,0,0,0.5,0,1,2,null,"Bastide et al., 1989"]
["Gesundheit und Ernährung","Somatische Erkrankungen","Ereignisse, Mortalität, Morbidität","Grippewellen",0.5,1,0,1,0,1,3.5]
["Gesundheit und Ernährung","Somatische Erkrankungen","Ereignisse, Mortalität, Morbidität","Krebserkrankungen",0.5,1,0,0,0,1,2.5,1,"Bastide et al., 1989"]
["Gesundheit und Ernährung","Somatische Erkrankungen","Ereignisse, Mortalität, Morbidität","Leukemia",0.5,0,0,0.5,0,1,2,null,"Bastide et al., 1989"]
["Gesundheit und Ernährung","Somatische Erkrankungen","Ereignisse, Mortalität, Morbidität","Pneumonia",0.5,0,0,0.5,0,1,2,null,"Bastide et al., 1989"]
["Gesundheit und Ernährung","Somatische Erkrankungen","Ereignisse, Mortalität, Morbidität","Tetanus",0.5,0,0,0.5,0,1,2,null,"Bastide et al., 1989"]
["Gesundheit und Ernährung","Somatische Erkrankungen","Ereignisse, Mortalität, Morbidität","Tuberculosis ",0.5,0,0,0.5,0,1,2,null,"Bastide et al., 1989"]
["Gesundheit und Ernährung","Sportunfälle","Mortalität, Morbidität","Handfeuerwaffen",0.5,0,0,0,0,0.5,1,1,"Al-Rawad & Al Khattab, 2015"]
["Gesundheit und Ernährung","Stress","Morbidität",null,1,1,0,0,0,0.5,2.5,null,"Flynn et al., 1994"]
["Gesundheit und Ernährung","Substanzrisiken","Mortalität, Morbidität","Alkohol",1,1,0,0,0,1,3,null,"Al-Rawad & Al Khattab, 2015"]
["Gesundheit und Ernährung","Substanzrisiken","Mortalität, Morbidität","Drogen, e.g. Marijuana, Sleeping pills, Tranquilizers, Antidepressants",1,1,0,0,0,1,3,null,"Al-Rawad & Al Khattab, 2015"]
["Gesundheit und Ernährung","Substanzrisiken","Mortalität, Morbidität","Koffein",1,1,0,0,0,1,3,null,"Chauvin et al., 2007b"]
["Gesundheit und Ernährung","Substanzrisiken","Mortalität, Morbidität","Passivrauchen",0.5,1,0,0,0,0.5,2,1,"Radionova et al., 2009"]
["Gesundheit und Ernährung","Substanzrisiken","Mortalität, Morbidität","Tabak",1,1,0,0,0,1,3,null,"Slovic et al., 1980"]
["Gesundheit und Ernährung","Tierunfälle","Ereignisse, Mortalität, Morbidität","Wildschaden",1,1,0,1,0,1,4,1]
["Gesundheit und Ernährung","Tierunfälle","Ereignisse, Mortalität, Morbidität","Wolfsangriffe",0.5,1,0,1,0,0.5,3,1]
["Gesundheit und Ernährung","Tierunfälle","Morbidität, Mortalität","Domestic animals, Abandoned animals",0.5,0,0,0,0,0,0.5,1,"Radionova et al., 2009"]
["Gesundheit und Ernährung","Tierunfälle","Mortalität, Morbidität","Schlangenbisse",0,0.5,0,1,0,0.5,2]
["Gesundheit und Ernährung","Tierunfälle","Mortalität, Morbidität","Spinnenbisse, Insektenbisse",0,0.5,0,1,0,0.5,2,null,"Bastide et al., 1989"]
["Gesundheit und Ernährung","unverhüteter Sex","Ereignisse, Mortalität, Morbidität","AIDS",0.5,0,0,1,0,1,2.5,null,"Schmidt & Wei, 2006"]
["Gesundheit und Ernährung","unverhüteter Sex","Ereignisse, Mortalität, Morbidität","Geschlechtserkrankungen",0.5,0,0,1,0,1,2.5,null,"Schmidt & Wei, 2006"]
["Gesundheit und Ernährung","Vergiftungen","Ereignisse, Mortalität, Morbidität","Chemikalien",0.5,1,0,0,0,1,2.5]
["Gesundheit und Ernährung","Vergiftungen","Ereignisse, Mortalität, Morbidität","Kosmetik",0.5,0,0,0,0,0.5,1,null,"Chauvin et al., 2007b"]
["Gesundheit und Ernährung","Vergiftungen","Ereignisse, Mortalität, Morbidität","Pilze",0.5,0,0,0.5,0,1,2,null,"Karpowicz-Lazreg et al., 1993"]
["Gesundheit und Ernährung","Vergiftungen","Ereignisse, Mortalität, Morbidität","Radon zuhause",0.5,1,0,0,0,0.5,{"$f":"E105+F105+G105+H105+I105+J105","v":2},null,"Flynn et al., 1994"]
["Gesundheit und Ernährung","Vergiftungen","Ereignisse, Mortalität, Morbidität","Saccharin",0.5,0,0,0,0,0.5,1,null,"Karpowicz-Lazreg et al., 1993"]
["Gesundheit und Ernährung","verunreinigte Lebensmittel","Morbidität","Bacteria in food",1,1,0,0,0,0.5,2.5,null,"Flynn et al., 1994"]
["Gesundheit und Ernährung","verunreinigte Lebensmittel","Morbidität","Schadstoffe in Fisch",1,1,0,0,0,0.5,2.5]
["Gesundheit und Ernährung","Wechselwirkungen bei Behandlungen","Mortalität, Morbidität","Nebenwirkungen",0.5,0.5,0,0,0,0.5,1.5,null,"Al-Rawad & Al Khattab, 2015"]
["Gesundheit und Ernährung","Wechselwirkungen bei Behandlungen","Mortalität, Morbidität","Polymedikation",0.5,1,0,0,0,0.5,2]
["Ökonomie, Finanzen und Arbeit","Grauer Kapitalmarkt","Armut, Verluste","Altersvorsorge, Altersarmut",1,1,0,0,1,0.5,3.5,1,"Al-Rawad & Al Khattab, 2015"]
["Ökonomie, Finanzen und Arbeit","Arbeitsbelastung","Mortalität, Morbidität","Arbeitsplatz-Risiken, e.g. Monitore",0,0.5,0,0,0,1,1.5,null,"Chauvin et al., 2007a"]
["Ökonomie, Finanzen und Arbeit","Arbeitsunfälle","Morbidität, Mortalität","Firefighting",0,0,0,0,0,0.5,0.5,null,"Karpowicz-Lazreg et al., 1993"]
["Ökonomie, Finanzen und Arbeit","Arbeitsunfälle","Morbidität, Mortalität","Lasers",0,0,0,0,0,0.5,0.5,null,"Karpowicz-Lazreg et al., 1993"]
["Ökonomie, Finanzen und Arbeit","Arbeitsunfälle","Morbidität, Mortalität","Police work",0,0,0,0,0,0.5,0.5,null,"Karpowicz-Lazreg et al., 1993"]
["Ökonomie, Finanzen und Arbeit","Arbeitsunfälle","Morbidität, Mortalität","Tractors",0,0,0,0,0,0.5,0.5,null,"Karpowicz-Lazreg et al., 1993"]
["Ökonomie, Finanzen und Arbeit","Arbeitsunfälle","Mortalität, Morbidität","Berufsart, Industrial injuries",0,0,0,0,0,1,1,null,"Bastide et al., 1989"]
["Ökonomie, Finanzen und Arbeit","Einzelunternehmer","Ereignisse, Armut, Morbidität, Mortalität, Risikofaktoren","Erfolg vs. Insolvenzen",0,1,0,0,1,1,3]
["Ökonomie, Finanzen und Arbeit","Fonds","Armut, Verluste","Altersvorsorge, Altersarmut",1,1,0,0,0,0.5,2.5,1]
["Ökonomie, Finanzen und Arbeit","Glücksspiel","Verluste, Armut, Morbidität, Mortalität","Onlinepoker",1,0,0,0,0,1,2,1]
["Ökonomie, Finanzen und Arbeit","Immobilien","Verluste, Armut, Morbidität, Mortalität","Altersvorsorge, Altersarmut",1,1,0,0,0,0.5,2.5,1]
["Ökonomie, Finanzen und Arbeit","Investitionsrisiken","Armut, Verluste","Altersvorsorge, Altersarmut",1,1,0,0,0,0.5,2.5,1]
["Ökonomie, Finanzen und Arbeit","Jährliches Einkommen","Armut, Morbidität, Mortalität","Altersvorsorge, Altersarmut",1,1,0,0,0,0.5,2.5,1]
["Ökonomie, Finanzen und Arbeit","Jährliches Sparvolumen","Armut, Verluste, Morbidität, Mortalität","Altersvorsorge, Altersarmut",1,1,0,0,0,0.5,2.5,1]
["Ökonomie, Finanzen und Arbeit","Konsum","Armut, Verluste, Morbidität, Mortalität","Ausfälle und Verspätungen, Schlichtungen",1,0,0,0,0,1,2,1]
["Ökonomie, Finanzen und Arbeit","Konsum","Armut, Verluste, Morbidität, Mortalität","Beschädigtes oder verlorenes Gepäck",1,0,0,0,0,1,2,1]
["Ökonomie, Finanzen und Arbeit","Konsum","Armut, Verluste, Morbidität, Mortalität","Energieversorgerwechsel","app",0,0,0,0,0]
["Ökonomie, Finanzen und Arbeit","Konsum","Armut, Verluste, Morbidität, Mortalität","Gesondertes Entgelt bei Dienstleistungen",1,0,0,0,0,0,{"$f":"E128+F128+G128+H128+I128+J128","v":1},1]
["Ökonomie, Finanzen und Arbeit","Konsum","Armut, Verluste, Morbidität, Mortalität","Haustürgeschäfte",1,0,0,0,0,1,2,1]
["Ökonomie, Finanzen und Arbeit","Konsum","Armut, Verluste, Morbidität, Mortalität","Inkasso: Unseriöse Geschäftspraktiken",1,0,0,0,0,0,1,1]
["Ökonomie, Finanzen und Arbeit","Konsum","Armut, Verluste, Morbidität, Mortalität","Kreditkartenschulden",1,0,0,0,0,1,2,1]
["Ökonomie, Finanzen und Arbeit","Konsum","Armut, Verluste, Morbidität, Mortalität","Mängel bei Pauschalreisen",1,0,0,0,0,0.5,1.5,1]
["Ökonomie, Finanzen und Arbeit","Konsum","Armut, Verluste, Morbidität, Mortalität","Mängel/Gewährleistung, geplante Obsoleszens",1,0,0,0,0,0.5,1.5,1]
["Ökonomie, Finanzen und Arbeit","Konsum","Armut, Verluste, Morbidität, Mortalität","Nachhaltiger Konsum",1,1,0,0,1,1,4,1]
["Ökonomie, Finanzen und Arbeit","Konsum","Armut, Verluste, Morbidität, Mortalität","Reisen mit eingeschränkter Mobilität",0.5,0,0,0,0,0,0.5,0]
["Ökonomie, Finanzen und Arbeit","Konsum","Armut, Verluste, Morbidität, Mortalität","Telekommunikationsverträge","app",0,0,0,0,0]
["Ökonomie, Finanzen und Arbeit","Konsum","Armut, Verluste, Morbidität, Mortalität","Unerlaubte Telefonwerbung",1,0,0,0,0,0.5,{"$f":"E137+F137+G137+H137+I137+J137","v":1.5},1]
["Ökonomie, Finanzen und Arbeit","Konsum","Armut, Verluste, Morbidität, Mortalität","Ungerechtfertigte Rechnungen",1,0,0,0,0,0.5,{"$f":"E138+F138+G138+H138+I138+J138","v":1.5},1]
["Ökonomie, Finanzen und Arbeit","Konsum","Armut, Verluste, Morbidität, Mortalität","Widerrufsrecht",1,0,0,0,0,0,{"$f":"E139+F139+G139+H139+I139+J139","v":1},1]
["Ökonomie, Finanzen und Arbeit","Konsum","Auftreten, wirtschaftliche Verluste","Fallbezogene Erfolgsquote bei Verbraucherklagen (z.B. bei Kauf & Reklamation)",1,1,0,0,0,1,{"$f":"E140+F140+G140+H140+I140+J140","v":3},1]
["Ökonomie, Finanzen und Arbeit","Konten","Armut, Verluste, Morbidität, Mortalität","Kontowechsel","app",1,0,0,0,0.5]
["Ökonomie, Finanzen und Arbeit","Konten","Armut, Verluste, Morbidität, Mortalität, Exklusion","Dispozinsen","app",1,0,0,0,0.5]
["Ökonomie, Finanzen und Arbeit","Kredite","Armut, Verluste, Morbidität, Mortalität, Exklusion","Kreditvergabe",1,1,0,0,0,0.5,{"$f":"E143+F143+G143+H143+I143+J143","v":2.5},1]
["Ökonomie, Finanzen und Arbeit","Kredite","Armut, Verluste, Morbidität, Mortalität, Exklusion","Scoring",1,1,0,0,0,0.5,2.5,1]
["Ökonomie, Finanzen und Arbeit","Lotterien","Ereignisse, Verluste, Armut, Morbidität, Mortalität","Gewinne",1,0,0,0,1,1,3,1]
["Ökonomie, Finanzen und Arbeit","Mieten","Armut, Verluste","Mietpreise",1,0,0,0,0,1,2,1]
["Ökonomie, Finanzen und Arbeit","Schulden","Armut, Morbidität, Mortalität, Verluste","Schuldenfallen",1,1,0,0,0,1,3,1]
["Ökonomie, Finanzen und Arbeit","Staatsanleihen","Armut, Verluste","Altersvorsorge, Altersarmut",1,1,0,0,0,0.5,2.5,1]
["Ökonomie, Finanzen und Arbeit","Versicherungen","Auftreten, wirtschaftliche Verluste","Nutzung Haftpflichtversicherung",1,1,0,0,1,0.5,3.5,1]
["Ökonomie, Finanzen und Arbeit","Versicherungen","Verluste, Armut, Morbidität, Mortalität","Versicherungstypen",1,1,0,0,0,0.5,2.5,1]
["Technologien und Digitalisierung","Ablenkung durch Smartphone-Gebrauch","Ereignisse, Mortalität","Fußgängerunfälle",1,0.5,0,0,0,1,2.5,1]
["Technologien und Digitalisierung","Algorithmen","Armut, Verluste","AGB-Irreführung","app",1,0,0,0,0.5,null,null,"\"vermintes Territorium\""]
["Technologien und Digitalisierung","Algorithmen","Armut, Verluste","Digitaler Fussabdruck",1,1,0,0,0,0.5,{"$f":"E153+F153+G153+H153+I153+J153","v":2.5},1]
["Technologien und Digitalisierung","Algorithmen","Armut, Verluste","Diskriminierung, social scoring",1,1,0,0,0,0.5,2.5,1]
["Technologien und Digitalisierung","Algorithmen","Armut, Verluste","Invasion eigener Geräte",1,1,0,0,0,0.5,2.5,1]
["Technologien und Digitalisierung","Algorithmen","Armut, Verluste","Kostenfallen im Internet",1,1,0,0,0,0.5,2.5,1]
["Technologien und Digitalisierung","Algorithmen","Armut, Verluste","personalisierte Angebote/Preise (personal pricing)",1,1,0,0,0,1,3,1]
["Technologien und Digitalisierung","Algorithmen","Armut, Verluste","Recht an den eigenen Daten",1,1,0,0,0,0.5,2.5,1]
["Technologien und Digitalisierung","Algorithmen","Armut, Verluste","Systembindung",1,1,0,0,0,0.5,2.5,1]
["Technologien und Digitalisierung","Algorithmen","Armut, Verluste","Teure Kundenhotlines",1,0,0,0,0,0.5,1.5,1]
["Technologien und Digitalisierung","Algorithmen","Armut, Verluste","Urheberrecht im Internet",1,1,0,0,0,0,2,1]
["Technologien und Digitalisierung","Autonome Maschinen","Ereignisse, Mortalität, Verluste","Selbstfahrende Autos",1,1,0,0,0.5,0,2.5,1,"\"Sicherheitsdaten?\""]
["Technologien und Digitalisierung","Bacteriological weapons ",null,null,0,0,0,0,0,0,0,null,"Chauvin et al., 2007a"]
["Technologien und Digitalisierung","Biotechnologie-Unfälle","Ereignisse, Mortalität, Morbidität","Kontaminationen",0.5,1,0,0,0,0,1.5,1]
["Technologien und Digitalisierung","Biotechnologie-Unfälle","Ereignisse, Mortalität, Morbidität","Quecksilber",0,0,0,0,0,0,0,null,"Hinman et al., 1993"]
["Technologien und Digitalisierung","Chemical fertilizers ",null,null,0,0,0,0,0,0.5,0.5,null,"Chauvin et al., 2007a"]
["Technologien und Digitalisierung","Chemical plants ",null,null,0,0,0,0,0,0.5,0.5,null,"Chauvin et al., 2007a"]
["Technologien und Digitalisierung","Chemieanlagen","Ereignisse, Mortalität, Morbidität","Unfälle",0,0.5,1,0,0,0.5,2]
["Technologien und Digitalisierung","Coal/Oil plants",null,null,0,0,0,0,0,0.5,0.5,null,"Flynn et al., 1994"]
["Technologien und Digitalisierung","Computerspiele","Morbidität","Fettleibigkeit",1,1,0,0,0,0.5,2.5,1]
["Technologien und Digitalisierung","Datenschutz","Auftreten","elektronische Zahlungsoptionen (Privatsphäre, Verschlüsselung)",1,1,0,0,0,0.5,2.5,1]
["Technologien und Digitalisierung","Datenschutz","Auftreten","Email-Provider",1,1,0,0,0,0.5,2.5,1]
["Technologien und Digitalisierung","Datensicherheitsprobleme","Auftreten, wirtschaftliche Risiken","Cyberkriminalität",1,1,0,0,0,0.5,2.5,1]
["Technologien und Digitalisierung","Earth orbiting satellites",null,null,0,0,0,0,0,0.5,0.5,null,"Karpowicz-Lazreg et al., 1993"]
["Technologien und Digitalisierung","Elektrosmog","Mortalität, Morbidität","3/4g-Antennen (Handystrahlen)",1,1,0,0,0,1,3,1,"Radionova et al., 2009"]
["Technologien und Digitalisierung","Genetisches Engineering","Ereignisse, wirtschaftliche Risiken, Morbidität","genetisch modifizierte Lebensmittel",1,1,0,0,0,1,3,1,"Schmidt & Wei, 2006"]
["Technologien und Digitalisierung","Hydroelectric power plants",null,null,0,0,0,0,0,0.5,0.5,null,"Chauvin et al., 2007a"]
["Technologien und Digitalisierung","Konsum","Armut, Verluste, Morbidität, Mortalität","online-shopping",1,0,0,0,0,1,2,1]
["Technologien und Digitalisierung","Künstliche Intelligenz","Ereignisse, Arbeitsplatzverluste, Mortalität","Panoptikum",0.5,1,0,0,0,0,1.5,1]
["Technologien und Digitalisierung","Magnetfelder","Ereignisse, Mortalität, Morbidität","Herzschrittmacher",1,1,0,0,0,1,3,1]
["Technologien und Digitalisierung","Mikrowellen","Ereignisse, Mortalität, Morbidität","Mikrowellengeräte",1,1,0,0,0,1,3,1,"Chauvin et al., 2007b"]
["Technologien und Digitalisierung","Nanotechnologie","Ereignisse, Mortalität, Morbidität","Konsumprodukte mit Nanotechnologie",1,1,0,0,0,0.5,2.5,1,"Braman et al., 1997"]
["Technologien und Digitalisierung","Nuclear weapons ",null,null,0,0,1,0,0,0,1,null,"Chauvin et al., 2007a"]
["Technologien und Digitalisierung","Nuklearkraftwerke","Ereignisse, Mortalität, Morbidität","Unfälle, Abfälle",0,0,1,0,0,1,2,null,"Slovic et al., 1980"]
["Technologien und Digitalisierung","Solar power plants",null,null,0,0,0,0,0,0.5,{"$f":"E185+F185+G185+H185+I185+J185","v":0.5},null,"Chauvin et al., 2007a"]
["Technologien und Digitalisierung","Space exploration",null,null,0,0,0,0,0,0.5,0.5,null,"Karpowicz-Lazreg et al., 1993"]
["Technologien und Digitalisierung","Thermal power plants",null,null,0,0,0,0,0,0.5,0.5,null,"Chauvin et al., 2007a"]
["Technologien und Digitalisierung","Überwachung durch Institutionen","Ereignisse","Emails",1,1,0,0,0,0.5,2.5,1]
["Umwelt und Verkehrsrisiken","Autoabgase","Morbidität, Mortalität","Leaded gasoline, Auto exhaust fumes",0.5,0,0,0,0,0,0.5,1,"Hinman et al., 1993"]
["Umwelt und Verkehrsrisiken","Baumaterialien","Morbidität, Mortalität","Asbest",0.5,1,0,0,0,0.5,2,null,"Hinman et al., 1993"]
["Umwelt und Verkehrsrisiken","Bevölkerungswachsum","Ereignisse",null,0,0,0,0,0,0.5,0.5,null,"Slovic et al., 1980"]
["Umwelt und Verkehrsrisiken","Biologische Vielfalt","Ereignisse","Bienensterben",0,1,0,0,0,0.5,1.5,null,"Schmidt & Wei, 2006"]
["Umwelt und Verkehrsrisiken","Bodenverluste","wirtschaftliche Verluste","Bodenerosionen, Überdüngung, Biokäufe",0.5,1,0,0,0,0.5,2,null,"Slovic et al., 1980"]
["Umwelt und Verkehrsrisiken","Erdbeben","Ereignisse, Mortalität, Morbidität",null,0,0,1,1,0,0.5,2.5,null,"Al-Rawad & Al Khattab, 2015"]
["Umwelt und Verkehrsrisiken","Fahrzeuge","Mortalität, Morbidität","Auto",1,1,0,0,0,1,3,1,"Bastide et al., 1989"]
["Umwelt und Verkehrsrisiken","Fahrzeuge","Mortalität, Morbidität","Eisenbahn",1,1,0,0,0,1,3,1,"Slovic et al., 1980"]
["Umwelt und Verkehrsrisiken","Fahrzeuge","Mortalität, Morbidität","Fahrrad",1,1,0,0,0,1,3,1,"Al-Rawad & Al Khattab, 2015"]
["Umwelt und Verkehrsrisiken","Fahrzeuge","Mortalität, Morbidität","Flugzeuge",1,1,1,0,0,1,4,1]
["Umwelt und Verkehrsrisiken","Fahrzeuge","Mortalität, Morbidität","Motorcycles",0.5,0,0,0,0,0.5,1,null,"Hinman et al., 1993"]
["Umwelt und Verkehrsrisiken","Fahrzeuge","Mortalität, Morbidität","ÖPNV",1,1,0,0,0,1,3,1,"Chauvin et al., 2007a"]
["Umwelt und Verkehrsrisiken","Fahrzeuge","Mortalität, Morbidität","Schiff, e.g. Recreational boating",1,1,0,0,0,1,3,1,"Chauvin et al., 2007b"]
["Umwelt und Verkehrsrisiken","Fracking",null,"Energieerzeuger nachhaltig wählen",0.5,1,0,0,0,0.5,2]
["Umwelt und Verkehrsrisiken","Gewitter","Ereignisse, Mortalität, Morbidität","Hagel, Blitzschläge, Sturm",0,0,0,1,0,1,2]
["Umwelt und Verkehrsrisiken","Globale Erwärmung","Wetterereignisse, Mortalität, Morbidität","Biokäufe",0.5,0,0,0,1,0.5,2,null,"Slovic et al., 1980"]
["Umwelt und Verkehrsrisiken","Haushaltsunfälle","Morbidität, Mortalität","Electric household appliances",0.5,0,0,0,0,0.5,1,null,"Hinman et al., 1993"]
["Umwelt und Verkehrsrisiken","Hitzewellen","Ereignisse, Mortalität, Morbidität",null,0,0,0,1,0,1,2]
["Umwelt und Verkehrsrisiken","Hochspannungsleitungen","Ereignisse, Mortalität, Morbidität","Leben an Hochspannungsleitungen",0.5,1,0,0,0,0,1.5,null,"Flynn et al., 1994"]
["Umwelt und Verkehrsrisiken","Hochwasser","Ereignisse, Mortalität, Morbidität","Flüsse in Deutschland",0,0,0,1,0,1,2,null,"Al-Rawad & Al Khattab, 2015"]
["Umwelt und Verkehrsrisiken","Industrielle Verschmutzung","Ereignisse, Mortalität, Morbidität","Luftverschmutzung",0.5,0.5,0,0,0,0.5,1.5,null,"Al-Rawad & Al Khattab, 2015"]
["Umwelt und Verkehrsrisiken","Lärmbelastung","Ereignisse, Mortalität, Morbidität",null,0,1,0,0,0,1,2]
["Umwelt und Verkehrsrisiken","Luftverschmutzung","Mortalität, Morbidität","Feinstaubbelastung",0.5,1,0,0,0,1,2.5]
["Umwelt und Verkehrsrisiken","Massentourismus","Ereignisse",null,1,0,0,0,0,0.5,1.5,null,"Slovic et al., 1980"]
["Umwelt und Verkehrsrisiken","Öffentliche Infrastruktur","Mortalität, Morbidität","Brücken",0,0,0,0,0,0.5,0.5,null,"Radionova et al., 2009"]
["Umwelt und Verkehrsrisiken","Öffentliche Infrastruktur","Mortalität, Morbidität","Dammbruch",0,0,1,0,0,0,1,null,"Hinman et al., 1993"]
["Umwelt und Verkehrsrisiken","Öffentliche Infrastruktur","Mortalität, Morbidität","Hochhäuser",0,0,0,0,0,0.5,0.5,null,"Radionova et al., 2009"]
["Umwelt und Verkehrsrisiken","Öffentliche Infrastruktur","Mortalität, Morbidität","Lifts",0,0,0,0,0,0,0,null,"Radionova et al., 2009"]
["Umwelt und Verkehrsrisiken","Öffentliche Infrastruktur","Mortalität, Morbidität","Straßen, Versorgung",0,0,0,0,0,0.5,{"$f":"E217+F217+G217+H217+I217+J217","v":0.5},null,"Chauvin et al., 2007a"]
["Umwelt und Verkehrsrisiken","Ozonschichtverdünnung","Morbidität",null,0.5,0,0,0,0,0,0.5,null,"Flynn et al., 1994"]
["Umwelt und Verkehrsrisiken","Pestizide, Herbizide, Fungizide, Insektizide","Mortalität, Morbidität","Glyphosat, DDT, in Lebensmitteln",1,1,0,0,0,1,3,null,"Slovic et al., 1980"]
["Umwelt und Verkehrsrisiken","Rare Ereignisse","Ereignisse, Mortalität, Morbidität","umstürzende Bäume",0,1,0,0,0,1,2]
["Umwelt und Verkehrsrisiken","Reisesicherheit","Mortalität, Morbidität","Terrorismus in Reiseländern",1,0,0,0,0,0.5,1.5,1]
["Umwelt und Verkehrsrisiken","Stürme","Ereignisse, Mortalität, Morbidität","Sandstürme",0,0,0,1,0,0.5,1.5,null,"Al-Rawad & Al Khattab, 2015"]
["Umwelt und Verkehrsrisiken","Trinkwasser","Ereignisse","Belastungsreduktion BIO",0.5,1,0,0,1,1,3.5]
["Umwelt und Verkehrsrisiken","Trinkwasser","Ereignisse","Verschmutzungsrisiken",0.5,0.5,0,0,0,1,2,null,"Slovic et al., 1980"]
["Umwelt und Verkehrsrisiken","Vulkanausbruch","Ereignisse, Mortalität, Morbidität",null,0,0,0,1,0,1,2,null,"Slovic et al., 1980"]
["Umwelt und Verkehrsrisiken","Waldbrände","Ereignisse, Mortalität, Morbidität","Sommer in Deutschland",0,0,0,1,0,1,2]
["Umwelt und Verkehrsrisiken","Waldsterben","Ereignisse",null,0,1,0,0,0,0.5,1.5,null,"Chauvin et al., 2007a"]

{"sheet":"survey","index":1,"n_rows":43,"n_cols":9,"rows_kept":43,"cut":false,"hidden":false,"merged":[]}
[null,"RISK TOPICS"]
[null,"Society, social and political issues","FGR","MJ","MM","Within a year..","potential evidence","dread","known to the exposed"]
[null,"Cyber crime: becoming victim of identity theft","x","x","x",null,"crime statistics",0,0]
[null,"Cyber crime: becoming victim of privacy intrusion","x","x","x","Of 1 million people how many have had their personal data shared without their consent (e.g., private photos or emails, revenge porn)","police reports",0,0]
[null,"Crime: becoming victim of robbery","x","x","x",null,"crime statistics",0,1]
["Dread risk","Terrorist attacks: mortality","x","x","x",null,"crime statistics",1,0]
[]
[null,"Health and nutrition"]
[null,"Drowning: mortality","x","x","x",null,"e.g. Eurostat",0,1]
[null,"Cancer: mortality","x","x","x","Of 1 million people how many will die from cancer?","e.g. Eurostat",0,0]
[null,"Death related to influenza","x","x","x",null,"e.g. Eurostat",0,0]
[null,"CVD: mortality","x","x","x",null,"e.g. Eurostat",0,0]
[null,"Poisoned by a mushroom","x","x","x",null,null,0,1]
[]
[null,"Economics, finance, and work"]
["Consumer protection","Positive economic effect of sustainable consumption","x","x","x","Of 1 million people who switch from halogen lamps to LED lamps, how many will actually save money within 12 months of switching?","model estimates",0,0]
[null,"Getting caught in debt traps","x","x","x","Of 1 million people how many will go bankrupt (not able to serve one's debt)?","national statistics",0,0]
[null,"Liability insurance claims ","x","x","x","Of 1 million people how many people will make a claim on their third-party insurance?","de, fr, uk at least",0,1]
[null,"Lottery winning (at least 10,000 EUR)","x","x","x",null,null,0,1]
[]
[null,"Technology and digitalization"]
[null,"Morbidity by smartphone emissions","x","x","x","Of 1 million people who use a smartphone, how many will develop cancer due to the radiation exposure?",null,0,0]
[null,"Unemployment","x","x","x","Of 1 million people how many will lose their job due to advances in information technology?","model estimates",0,0]
[null,"Morbidity by herbicide (e.g. Glyphosat)","x","x","x",null,"conflicting evidence",0,0]
[]
[null,"Environment and traffic"]
["Non-dread risk (contrast)","Car accident mortality","x","x","x",null,"e.g. Eurostat",0,0]
["Dread risk","Plane accident mortality","x","x","x",null,null,1,1]
[null,"Morbidity by air pollution","x","x","x","Of 1 million people, how many will get sick due to air pollution?","e.g. Global burden of disease (yearly estimates)",0,0]
[null,"Floods (e.g. From rivers)","x","x","x","Of 1 million people, how many will be a victim of flooding?","national statistics",1,0]
[]
[]
[]
[null,"Subordinate"]
[null,"Becoming victim of a wolf attack","x","agree with MM",null,"Of 1 million people from Germany how many become victim of a wolf attack?"]
[null,"Poisoned by snakes","x",null,null,"[was for having one more natural one, but we can skip it] Mirjam: Death by eating a poisonous mushroom?"]
[null,"Morbidity by genetically modified food","x","x",null,"Of 1 million people who eat genetically modified maize, how many will get sick by intoxication by the integrated insecticide?","disputed, but confirmed zero"]
[null,"Morbidity by preservative E250 Natrium nitrite","x","x",null,"Of 1 million people who eat packaged cold meat every day how many will develop cancer due to the preservative E250 Natrium nitrite?","disputed, but confirmed zero"]
[null,"Successful investment in stock market","x","x","x","Of 1 million people investing in stocks how many will succeed with actual gain? ","Problem of uncertainty"]
[null,"Entrepreneurial success/Insolvency risk","x","x",null,"Of 1 million people who start a business, how many will fail? ","Problem of subset of people"]
[null,"Success of suits by consumers","x","agree with MM",null,"Of 1 million people from German who start a lawsuit against an online seller how many will succeed?","Problem of subset of people"]
[null,"Financial loss by personal pricing","x","x",null,"Of 1 million people who buy a product online, how many will get a price that is adjusted to his/her personal data to his/her disadvantage?","too unknown?"]
[null,"Positive environmental effect of organic meat consumption","x","x",null,"Of 1 million people who buy organic meat only, how many benefit from an increase of drinkable water?"]

{"sheet":"RA_Website","index":2,"n_rows":103,"n_cols":5,"rows_kept":103,"cut":false,"hidden":false,"merged":[]}
["Risikoatlas-Visualisierung","Risikokategorie","mögliche Risiko-Endpunkte","Erläuterung/Beispiel","Gründe"]
[]
["Digitalisierung","Automatisierung","Arbeitsplatzverlust","Berufsart"]
["Digitalisierung","Digitalisierung","Arbeitsplatzverlust, Anonymitätsverlust","Qualifikationsmängel im Umgang"]
["Digitalisierung","Algorithmen","Armut, Verluste","Digitaler Fussabdruck","Ministry"]
["Digitalisierung","Algorithmen","Armut, Verluste","Diskriminierung, social scoring","Ministry"]
["Digitalisierung","Algorithmen","Armut, Verluste","Invasion eigener Geräte","Ministry"]
["Digitalisierung","Algorithmen","Armut, Verluste","Recht an den eigenen Daten","Ministry"]
["Digitalisierung","Social Scoring","Armut, Verluste, Morbidität, Mortalität, Exklusion","Kreditvergabe","Ministry"]
["Digitalisierung","Algorithmen","Armut, Verluste","Urheberrecht im Internet, user generated content","Ministry"]
["Digitalisierung","Autonome Maschinen","Ereignisse, Mortalität, Verluste","Selbstfahrende Autos","Ministry"]
["Digitalisierung","Computerspiele","Morbidität","Fettleibigkeit","Ministry"]
["Digitalisierung","Datenschutz","Auftreten","elektronische Zahlungsoptionen (Privatsphäre, Verschlüsselung)","Ministry"]
["Digitalisierung","Datenschutz","Auftreten","Email-Provider","Ministry"]
["Digitalisierung","Datensicherheitsprobleme","Auftreten, wirtschaftliche Risiken","Cyberkriminalität","Ministry"]
["Digitalisierung","Elektrosmog","Mortalität, Morbidität","3/4g-Antennen (Handystrahlen)","Ministry"]
["Digitalisierung","Magnetfelder","Ereignisse, Mortalität, Morbidität","Herzschrittmacher","Ministry"]
["Digitalisierung","Mikrowellen","Ereignisse, Mortalität, Morbidität","Mikrowellengeräte","Ministry"]
["Digitalisierung","Überwachung durch Institutionen","Ereignisse","Emails","Ministry"]
["Digitalisierung","Künstliche Intelligenz","Ereignisse, Arbeitsplatzverluste, Mortalität","Panoptikum","Ministry"]
[]
["Investitionen, Altersvorsorge & Armut","Grauer Kapitalmarkt","Armut, Verluste","Altersvorsorge, Altersarmut","Ministry"]
["Investitionen, Altersvorsorge & Armut","Fonds","Armut, Verluste","Altersvorsorge, Altersarmut","Ministry"]
["Investitionen, Altersvorsorge & Armut","Glücksspiel","Verluste, Armut, Morbidität, Mortalität","Onlinepoker","Ministry"]
["Investitionen, Altersvorsorge & Armut","Immobilien","Verluste, Armut, Morbidität, Mortalität","Altersvorsorge, Altersarmut","Ministry"]
["Investitionen, Altersvorsorge & Armut","Investitionsrisiken","Armut, Verluste","Altersvorsorge, Altersarmut","Ministry"]
["Investitionen, Altersvorsorge & Armut","Jährliches Einkommen","Armut, Morbidität, Mortalität","Altersvorsorge, Altersarmut","Ministry"]
["Investitionen, Altersvorsorge & Armut","Jährliches Sparvolumen","Armut, Verluste, Morbidität, Mortalität","Altersvorsorge, Altersarmut","Ministry"]
["Investitionen, Altersvorsorge & Armut","Kredite","Armut, Verluste, Morbidität, Mortalität, Exklusion","Kreditvergabe","Ministry"]
["Investitionen, Altersvorsorge & Armut","Lotterien","Ereignisse, Verluste, Armut, Morbidität, Mortalität","Gewinne","Ministry"]
["Investitionen, Altersvorsorge & Armut","Mieten","Armut, Verluste","Mietpreise","Ministry"]
["Investitionen, Altersvorsorge & Armut","Staatsanleihen","Armut, Verluste","Altersvorsorge, Altersarmut","Ministry"]
[]
["Kaufen, Verträge, und Schulden","Konsum","Auftreten, wirtschaftliche Verluste","Fallbezogene Erfolgsquote bei Verbraucherklagen (z.B. bei Kauf & Reklamation)","ist für das Ministerium vermutlich wichtig"]
["Kaufen, Verträge, und Schulden","Konsum","Armut, Verluste, Morbidität, Mortalität","Ausfälle und Verspätungen, Schlichtungen","Ministry"]
["Kaufen, Verträge, und Schulden","Konsum","Armut, Verluste, Morbidität, Mortalität","Beschädigtes oder verlorenes Gepäck","Ministry"]
["Kaufen, Verträge, und Schulden","Konsum","Armut, Verluste, Morbidität, Mortalität","Gesondertes Entgelt bei Dienstleistungen","Ministry"]
["Kaufen, Verträge, und Schulden","Konsum","Armut, Verluste, Morbidität, Mortalität","Haustürgeschäfte","Ministry"]
["Kaufen, Verträge, und Schulden","Konsum","Armut, Verluste, Morbidität, Mortalität","Inkasso: Unseriöse Geschäftspraktiken","Ministry"]
["Kaufen, Verträge, und Schulden","Konsum","Armut, Verluste, Morbidität, Mortalität","Kreditkartenschulden","Ministry"]
["Kaufen, Verträge, und Schulden","Konsum","Armut, Verluste, Morbidität, Mortalität","Mängel bei Pauschalreisen","Ministry"]
["Kaufen, Verträge, und Schulden","Konsum","Armut, Verluste, Morbidität, Mortalität","Mängel/Gewährleistung, geplante Obsoleszens","Ministry"]
["Kaufen, Verträge, und Schulden","Konsum","Armut, Verluste, Morbidität, Mortalität","Unerlaubte Telefonwerbung","Ministry"]
["Kaufen, Verträge, und Schulden","Konsum","Armut, Verluste, Morbidität, Mortalität","Ungerechtfertigte Rechnungen","Ministry"]
["Kaufen, Verträge, und Schulden","Konsum","Armut, Verluste, Morbidität, Mortalität","Widerrufsrecht","Ministry"]
["Kaufen, Verträge, und Schulden","Schulden","Armut, Morbidität, Mortalität, Verluste","Schuldenfallen","Ministry"]
["Kaufen, Verträge, und Schulden","Algorithmen","Armut, Verluste","Kostenfallen im Internet","Ministry"]
["Kaufen, Verträge, und Schulden","Algorithmen","Armut, Verluste","personalisierte Angebote/Preise (personal pricing)","Ministry"]
["Kaufen, Verträge, und Schulden","Algorithmen","Armut, Verluste","Systembindung","Ministry"]
["Kaufen, Verträge, und Schulden","Algorithmen","Armut, Verluste","Teure Kundenhotlines","Ministry"]
["Kaufen, Verträge, und Schulden","Konsum","Armut, Verluste, Morbidität, Mortalität","online-shopping","Ministry"]
[]
["Nachhaltiger Konsum","Konsum","Armut, Verluste, Morbidität, Mortalität","Nachhaltiger Konsum","Ministry"]
[]
["neue Technologien","Genetisches Engineering","Ereignisse, wirtschaftliche Risiken, Morbidität","genetisch modifizierte Lebensmittel","Ministry"]
["neue Technologien","Nanotechnologie","Ereignisse, Mortalität, Morbidität","Konsumprodukte mit Nanotechnologie","Ministry"]
["neue Technologien","Biotechnologie-Unfälle","Ereignisse, Mortalität, Morbidität","Kontaminationen","Ministry"]
[]
["Versicherungen","Versicherungen","Auftreten, wirtschaftliche Verluste","Nutzung Haftpflichtversicherung","Ministry"]
["Versicherungen","Versicherungen","Verluste, Armut, Morbidität, Mortalität","Versicherungstypen","Ministry"]
[]
["Kriminalitätsrisiken / Cybercrime","Kriminalität","Kriminalitätsfolgen","Cyberkriminalität: Identitätsdiebstahl"]
["Kriminalitätsrisiken / Cybercrime","Kriminalität","Kriminalitätsfolgen","Cyberkriminalität: Missbrauch intimer Daten"]
["Kriminalitätsrisiken / Cybercrime","Kriminalität","Opfer, Mortalität, Kriminalitätsfolgen, Verletzungen","Cyberkriminalität: Onlinebanking","die Deutschen sind ja bekanntermaßen extrem konservativ, was diese Dinge angeht und es wird ja bereits angezweifelt, ob sich die Einführung von smartphone-Zahlungsmethoden hier lohnt. Aber die werden kommen. Sprich: wird relevant werden. Ministerium widmet sich dem Thema auch unter der Überschrift ‘Sicherheit im Internet’. "]
["Kriminalitätsrisiken / Cybercrime","Kriminalität","Opfer, Mortalität, Kriminalitätsfolgen, Verletzungen","Kreditkartenbetrug auf Auslandsreise","scheint dem Ministerium wichtig zu sein und dazu gibt es mit Sicherheit Datensätze"]
["Kriminalitätsrisiken / Cybercrime","Kriminalität","Opfer, Mortalität, Kriminalitätsfolgen, Verletzungen","Kriminalität: Attacks in the Subway"]
["Kriminalitätsrisiken / Cybercrime","Kriminalität","Kriminalitätsfolgen","Kriminalitätsarten, e.g. Homicides "]
["Kriminalitätsrisiken / Cybercrime","Kriminalität","Opfer, Mortalität, Kriminalitätsfolgen, Verletzungen","Family violence/abuse"]
["Kriminalitätsrisiken / Cybercrime","Kriminalität","Opfer, Mortalität, Kriminalitätsfolgen, Verletzungen","Kidnapping of children"]
[]
["Mortalitätsrisiken/Leisure time","Ablenkung durch Smartphone-Gebrauch","Ereignisse, Mortalität","Fußgängerunfälle"]
["Mortalitätsrisiken/Leisure time","Sportunfälle","Mortalität, Morbidität","Handfeuerwaffen"]
["Mortalitätsrisiken/Leisure time","Substanzrisiken","Mortalität, Morbidität","Passivrauchen"]
["Mortalitätsrisiken/Leisure time","Mortalität - Fahrzeuge","Mortalität, Morbidität","Eisenbahn"]
["Mortalitätsrisiken/Leisure time","Mortalität - Fahrzeuge","Mortalität, Morbidität","Fahrrad"]
["Mortalitätsrisiken/Leisure time","Mortalität - Fahrzeuge","Mortalität, Morbidität","Flugzeuge"]
["Mortalitätsrisiken/Leisure time","Mortalität - Fahrzeuge","Mortalität, Morbidität","Auto"]
["Mortalitätsrisiken/Leisure time","Mortalität - Fahrzeuge","Mortalität, Morbidität","ÖPNV"]
["Mortalitätsrisiken/Leisure time","Mortalität - Fahrzeuge","Mortalität, Morbidität","Schiff, e.g. Recreational boating"]
["Mortalitätsrisiken/Leisure time","Reisesicherheit","Mortalität, Morbidität","Terrorismus in Reiseländern"]
["Mortalitätsrisiken/Leisure time","Freizeitunfälle","Morbidität, Mortalität","Achterbahnen"]
["Mortalitätsrisiken/Leisure time","Freizeitunfälle","Morbidität, Mortalität","Boxing"]
["Mortalitätsrisiken/Leisure time","Freizeitunfälle","Morbidität, Mortalität","Christmas tree lights"]
["Mortalitätsrisiken/Leisure time","Tierunfälle","Morbidität, Mortalität","Domestic animals, Abandoned animals"]
["Mortalitätsrisiken/Leisure time","Freizeitunfälle","Morbidität, Mortalität","Downhill skiing"]
["Mortalitätsrisiken/Leisure time","Freizeitunfälle","Morbidität, Mortalität","Jagdunfälle"]
["Mortalitätsrisiken/Leisure time","Freizeitunfälle","Morbidität, Mortalität","Power mowers"]
["Mortalitätsrisiken/Leisure time","Freizeitunfälle","Morbidität, Mortalität","Skateboards"]
["Mortalitätsrisiken/Leisure time","Freizeitunfälle","Morbidität, Mortalität","Sport: Jogging"]
["Mortalitätsrisiken/Leisure time","Freizeitunfälle","Morbidität, Mortalität","Taucher"]
["Mortalitätsrisiken/Leisure time","Autoabgase","Morbidität, Mortalität","Leaded gasoline, Auto exhaust fumes"]
["Mortalitätsrisiken/Leisure time","Somatische Erkrankungen","Ereignisse, Mortalität, Morbidität","CVD, Herzerkrankungen"]
["Mortalitätsrisiken/Leisure time","Mortalität","Ereignisse, Mortalität, Morbidität","Duschen"]
["Mortalitätsrisiken/Leisure time","Haushaltsunfälle","Ereignisse, Mortalität, Morbidität","Equipments in Bad State"]
["Mortalitätsrisiken/Leisure time","Freizeitunfälle","Ereignisse, Mortalität, Morbidität","Ertrinken"]
["Mortalitätsrisiken/Leisure time","Haushaltsunfälle","Ereignisse, Mortalität, Morbidität","Fensterputzen, Leiterstürze, Accidents at home"]
["Mortalitätsrisiken/Leisure time","Freizeitunfälle","Ereignisse, Mortalität, Morbidität","Haiangriffe"]
["Mortalitätsrisiken/Leisure time","Freizeitunfälle","Ereignisse, Mortalität, Morbidität","Kellertreppen"]
["Mortalitätsrisiken/Leisure time","Somatische Erkrankungen","Ereignisse, Mortalität, Morbidität","Krebserkrankungen"]
["Mortalitätsrisiken/Leisure time","Freizeitunfälle","Ereignisse, Mortalität, Morbidität","Kuhunfälle"]
["Mortalitätsrisiken/Leisure time","Freizeitunfälle","Ereignisse, Mortalität, Morbidität","Sportunfälle (z.B. Klettern)"]
["Mortalitätsrisiken/Leisure time","Tierunfälle","Ereignisse, Mortalität, Morbidität","Wildschaden"]
["Mortalitätsrisiken/Leisure time","Tierunfälle","Ereignisse, Mortalität, Morbidität","Wolfsangriffe"]

{"sheet":"erstmal nicht","index":3,"n_rows":4,"n_cols":5,"rows_kept":4,"cut":false,"hidden":false,"merged":[]}
["Umwelt und Verkehrsrisiken","Luftverschmutzung","Mortalität, Morbidität","Feinstaubbelastung","ich gehe stark von unterschiedlichen Antwortstrukturen von rural vs urban Probanden aus, ggfls auch im Ländervergleich. Innerhalb der deutschen Politik (Streit um die Umweltziele, Elektroautos, Kohleausstieg etc) nicht unwichtig. Zudem vermute ich, dass es ordentliche Datensätze gibt."]
["Gesundheit und Ernährung","Ernährungsstrategien und Diäten","Mortalität, Morbidität","vegane Lebensweise","gibt es hier die Möglichkeit von Kreuzvergleichen (vegan & Vitaminmangel vs omnivore & Vitaminmangel vs vegan & Diabetes vs omni & Diabetes, etc)?"]
["Gesundheit und Ernährung","Somatische Erkrankungen","Ereignisse, Mortalität, Morbidität","Grippewellen","jedes Jahr auf’s neue eine Diskussion."]
["Gesundheit und Ernährung","unverhüteter Sex","Ereignisse, Mortalität, Morbidität","Geschlechtserkrankungen","ich sehe da einfach die Eltern von pubertierenden Kindern und hoffentlich/vielleicht die Jugendlichen selber. Wenn sie diese Info finden würden, wäre das ein großer Gewinn."]

{"sheet":"old","index":4,"n_rows":134,"n_cols":12,"rows_kept":134,"cut":false,"hidden":false,"merged":[]}
["Bereich","Risikokategorie","mögliche Risiko-Endpunkte","Erläuterung/Beispiel","consumer focus","fgr","dread","natural","positive","evidence perspective","sum score","candidate"]
["Gesellschaft, Soziales und Politik","Kriminalität","Opfer, Mortalität, Kriminalitätsfolgen, Verletzungen","Cyberkriminalität: Identitätsdiebstahl",1,1,0,0,0,1,{"$f":"E2+F2+G2+H2+I2+J2","v":3},1]
["Gesellschaft, Soziales und Politik","Kriminalität","Opfer, Mortalität, Kriminalitätsfolgen, Verletzungen","Kriminalitätsarten",1,1,0,0,0,1,{"$f":"E3+F3+G3+H3+I3+J3","v":3},1]
["Gesellschaft, Soziales und Politik","Rechtsstreit","Auftreten, wirtschaftliche Verluste","Fallbezogene Erfolgsquote bei Verbraucherklagen (z.B. bei Kauf & Reklamation)",1,1,0,0,0,1,3,1]
["Gesellschaft, Soziales und Politik","Terrorismus","Ereignisse, Morbidität, Mortalität","Bombenanschläge, Schiessereien",0.5,1,1,0,0,0.5,3,1]
["Gesundheit und Ernährung","Freizeitunfälle","Ereignisse, Mortalität, Morbidität","Ertrinken",1,1,0,0,0,1,3,1]
["Gesundheit und Ernährung","Freizeitunfälle","Ereignisse, Mortalität, Morbidität","Haiangriffe",1,1,0,0,0,1,3,1]
["Gesundheit und Ernährung","Somatische Erkrankungen","Ereignisse, Mortalität, Morbidität","Grippewellen",0.5,1,0,1,0,1,3.5,1]
["Gesundheit und Ernährung","Tierunfälle","Mortalität, Morbidität","Schlangenbisse",0,0.5,0,1,0,0.5,2,1]
["Ökonomie, Finanzen und Arbeit","Aktien","Armut, Verluste","Altersvorsorge",1,1,0,0,1,0.5,3.5,1]
["Ökonomie, Finanzen und Arbeit","Einzelunternehmer","Ereignisse, Armut, Morbidität, Mortalität, Risikofaktoren","Erfolg vs. Insolvenzen",1,1,0,0,1,1,4,1]
["Ökonomie, Finanzen und Arbeit","Konsum","Armut, Verluste, Morbidität, Mortalität","Nachhaltiger Konsum",1,1,0,0,1,1,4,1]
["Ökonomie, Finanzen und Arbeit","Schulden","Armut, Morbidität, Mortalität, Verluste","Schuldenfallen",1,1,0,0,0,1,3,1]
["Technologien und Digitalisierung","Algorithmen","Armut, Verluste","personalisierte Angebote/Preise (personal pricing)",1,1,0,0,0,1,3,1]
["Technologien und Digitalisierung","Elektrosmog","Mortalität, Morbidität","3/4g-Antennen (Handystrahlen)",1,1,0,0,0,1,3,1]
["Technologien und Digitalisierung","Genetisches Engineering","Ereignisse, wirtschaftliche Risiken, Morbidität","genetisch modifizierte Lebensmittel",1,1,0,0,0,1,3,1]
["Technologien und Digitalisierung","Konservierungsstoffe","Ereignisse, Mortalität, Morbidität","E250 Natriumnitrit",1,1,0,0,0,1,3,1]
["Umwelt und Verkehrsrisiken","Fahrzeuge","Mortalität, Morbidität","Auto",1,1,0,0,0,1,3,1]
["Umwelt und Verkehrsrisiken","Fahrzeuge","Mortalität, Morbidität","Flugzeuge",1,1,1,0,0,1,4,1]
["Umwelt und Verkehrsrisiken","Luftverschmutzung","Mortalität, Morbidität","Feinstaubbelastung",0.5,1,0,0,0,1,2.5,1]
["Umwelt und Verkehrsrisiken","Trinkwasser","Ereignisse","Belastungsreduktion BIO",0.5,1,0,0,1,1,3.5,1]
["Gesellschaft, Soziales und Politik","Automatisierung","Arbeitsplatzverlust","Berufsart",0.5,1,0,0,0,0.5,2]
["Gesellschaft, Soziales und Politik","Digitalisierung","Arbeitsplatzverlust, Anonymitätsverlust","Qualifikationsmängel im Umgang",1,1,0,0,0,0.5,2.5]
["Gesellschaft, Soziales und Politik","Einsamkeit","Morbidität, Mortalität, Delinquenz, Sucht","Singlehaushalte im Alter",0.5,1,0,0,0,1,2.5]
["Gesellschaft, Soziales und Politik","Entwicklung von Kindern","Morbidität, Mortalität, Delinquenz, Armut, Behinderungen","Elternstatus, Schulzone",0.5,0,0,0,0,0.5,1]
["Gesellschaft, Soziales und Politik","Kriege","Ereignisse, Morbidität, Mortalität","Atomkrieg",0,0,1,0,0,0,1]
["Gesellschaft, Soziales und Politik","Kriminalität","Opfer, Mortalität, Kriminalitätsfolgen, Verletzungen","Cyberkriminalität: Onlinebanking",1,1,0,0,0,1,3]
["Gesellschaft, Soziales und Politik","Migration","Ereignisse, Armut, soziale Spannungen","Flüchtlinge",0.5,1,0,0,0,0.5,2]
["Gesellschaft, Soziales und Politik","Nichtlineare Entwicklungen","Ereignisse, Armut","Zinsen",1,1,0,0.5,0,0.5,3]
["Gesellschaft, Soziales und Politik","Persönlichkeitseigenschaften","Delinquenz, Armut","Depressivität",0.5,1,0,0,0,1,2.5]
["Gesellschaft, Soziales und Politik","Persönlichkeitseigenschaften","Delinquenz, Armut","Egozentrismus",0.5,1,0,0,0,1,2.5]
["Gesellschaft, Soziales und Politik","Persönlichkeitseigenschaften","Delinquenz, Armut","Neugier",0.5,1,0,0,0,1,2.5]
["Gesellschaft, Soziales und Politik","Probleme mit Eltern","Morbidität, Mortalität, Delinquenz, Armut","Pflege",0.5,1,0,0,0,1,2.5]
["Gesellschaft, Soziales und Politik","Probleme mit Kindern","Morbidität, Mortalität, Delinquenz, Armut","ADHS",0.5,1,0,0,0,1,{"$f":"E34+F34+G34+H34+I34+J34","v":2.5}]
["Gesellschaft, Soziales und Politik","Religion","Morbidität, Mortalität, Delinquenz, Armut","Christen, Atheisten, Muslime, Juden",0,1,0,0,0,0.5,1.5]
["Gesundheit und Ernährung","alternative Medizin","Morbidität, Mortalität","Akupunktur",0.5,1,0,0,0,0.5,2]
["Gesundheit und Ernährung","alternative Medizin","Morbidität, Mortalität","homöopathische Mittel",0.5,1,0,0,0,0.5,2]
["Gesundheit und Ernährung","Behandlungsfolgen","Ereignisse, Mortalität, Morbidität","Impfschäden",0.5,1,0,0,0,1,2.5]
["Gesundheit und Ernährung","Behandlungsfolgen","Ereignisse, Mortalität, Morbidität","Narkoseschäden",0.5,1,0,0,0,1,2.5]
["Gesundheit und Ernährung","Chirurgie","Ereignisse, Mortalität, Morbidität","Operationsfolgen",0.5,0,0,0,0,1,1.5]
["Gesundheit und Ernährung","Empfängnisverhütung","Ereignisse, Morbidität","Antibabypille mit neuen Gestagenen",0.5,0,0,0,0,1,1.5]
["Gesundheit und Ernährung","Epidemien","Ereignisse, Mortalität, Morbidität","Masern",0.5,0,0,0,0,1,1.5]
["Gesundheit und Ernährung","Ernährungsstrategien und Diäten","Mortalität, Morbidität","Atkinson",1,1,0,0,0,0.5,2.5]
["Gesundheit und Ernährung","Ernährungsstrategien und Diäten","Mortalität, Morbidität","vegane Lebensweise",1,1,0,0,0,0.5,2.5]
["Gesundheit und Ernährung","Freizeitunfälle","Ereignisse, Mortalität, Morbidität","Duschen",1,0,0,0,0,1,2]
["Gesundheit und Ernährung","Freizeitunfälle","Ereignisse, Mortalität, Morbidität","Kellertreppen",1,0,0,0,0,1,2]
["Gesundheit und Ernährung","Freizeitunfälle","Ereignisse, Mortalität, Morbidität","Sportunfälle (z.B. Klettern)",1,1,0,0,0,1,3]
["Gesundheit und Ernährung","Haushaltsunfälle","Ereignisse, Mortalität, Morbidität","Fensterputzen, Leiterstürze",1,0,0,0,0,1,2]
["Gesundheit und Ernährung","Hygiene","Ereignisse, Mortalität, Morbidität","Hygieneverstöße",0.5,1,0,0,0,1,2.5]
["Gesundheit und Ernährung","Medizinische Fehler","Ereignisse, Mortalität, Morbidität","Fehlmedikation",0.5,1,0,0,0,1,2.5]
["Gesundheit und Ernährung","Psychische Erkrankungen","Ereignisse, Mortalität, Morbidität, Opfer, Risikofaktoren","Depression",0.5,0,0,0,0,1,1.5]
["Gesundheit und Ernährung","Psychische Erkrankungen","Ereignisse, Mortalität, Morbidität, Opfer, Risikofaktoren","Süchte",0.5,0,0,0,0,1,1.5]
["Gesundheit und Ernährung","Resistente Erreger","Ereignisse, Mortalität, Morbidität","MRSA-Keime",0.5,1,0,0,0,1,2.5]
["Gesundheit und Ernährung","Substanzrisiken","Mortalität, Morbidität","Alkohol",1,1,0,0,0,1,3]
["Gesundheit und Ernährung","Substanzrisiken","Mortalität, Morbidität","illegale Drogen",1,1,0,0,0,1,3]
["Gesundheit und Ernährung","Substanzrisiken","Mortalität, Morbidität","Zigaretten",1,1,0,0,0,1,3]
["Gesundheit und Ernährung","Tierunfälle","Mortalität, Morbidität","Spinnenbisse",0,0.5,0,1,0,0.5,2]
["Gesundheit und Ernährung","Vergiftungen","Ereignisse, Mortalität, Morbidität","Chemikalien",0.5,1,0,0,0,1,2.5]
["Gesundheit und Ernährung","Vergiftungen","Ereignisse, Mortalität, Morbidität","Pilze",0.5,0,0,0.5,0,1,2]
["Gesundheit und Ernährung","verunreinigte Lebensmittel","Morbidität","Schadstoffe in Fisch",1,1,0,0,0,0.5,2.5]
["Gesundheit und Ernährung","Wechselwirkungen bei Behandlungen","Mortalität, Morbidität","Polymedikation",0.5,1,0,0,0,0.5,2]
["Ökonomie, Finanzen und Arbeit","Arbeitsbelastung","Mortalität, Morbidität","PC-Arbeitsplatzrisiken (Sitzen)",0.5,0.5,0,0,0,1,2]
["Ökonomie, Finanzen und Arbeit","Arbeitslosigkeit","Mortalität, Morbidität, Risikofaktoren","Berufsart",0.5,0,0,0,0,1,1.5]
["Ökonomie, Finanzen und Arbeit","Arbeitsunfälle","Mortalität, Morbidität","Berufsart",0.5,0,0,0,0,1,1.5]
["Ökonomie, Finanzen und Arbeit","Fonds","Armut, Verluste","Altersarmut",1,1,0,0,0,0.5,2.5]
["Ökonomie, Finanzen und Arbeit","Glücksspiel","Verluste, Armut, Morbidität, Mortalität","Onlinepoker",1,0,0,0,0,1,{"$f":"E66+F66+G66+H66+I66+J66","v":2}]
["Ökonomie, Finanzen und Arbeit","Immobilien","Verluste, Armut, Morbidität, Mortalität","Altersarmut",1,1,0,0,0,0.5,2.5]
["Ökonomie, Finanzen und Arbeit","Investitionsrisiken","Armut, Verluste","Altersarmut",1,1,0,0,0,0.5,2.5]
["Ökonomie, Finanzen und Arbeit","Jährliches Einkommen","Armut, Morbidität, Mortalität","Altersarmut",1,1,0,0,0,0.5,2.5]
["Ökonomie, Finanzen und Arbeit","Jährliches Sparvolumen","Armut, Verluste, Morbidität, Mortalität","Altersarmut",1,1,0,0,0,0.5,2.5]
["Ökonomie, Finanzen und Arbeit","Konsum","Armut, Verluste, Morbidität, Mortalität","Ausfälle und Verspätungen",1,0,0,0,0,1,2]
["Ökonomie, Finanzen und Arbeit","Konsum","Armut, Verluste, Morbidität, Mortalität","Beschädigtes oder verlorenes Gepäck",1,0,0,0,0,1,2]
["Ökonomie, Finanzen und Arbeit","Konsum","Armut, Verluste, Morbidität, Mortalität","Energieversorgerwechsel",1,0,0,0,0,0,1]
["Ökonomie, Finanzen und Arbeit","Konsum","Armut, Verluste, Morbidität, Mortalität","Gesondertes Entgelt bei Dienstleistungen",1,0,0,0,0,0,1]
["Ökonomie, Finanzen und Arbeit","Konsum","Armut, Verluste, Morbidität, Mortalität","Haustürgeschäfte",1,0,0,0,0,1,2]
["Ökonomie, Finanzen und Arbeit","Konsum","Armut, Verluste, Morbidität, Mortalität","Inkasso: Unseriöse Geschäftspraktiken",1,0,0,0,0,0,1]
["Ökonomie, Finanzen und Arbeit","Konsum","Armut, Verluste, Morbidität, Mortalität","Kreditkartenschulden",1,0,0,0,0,1,2]
["Ökonomie, Finanzen und Arbeit","Konsum","Armut, Verluste, Morbidität, Mortalität","Mängel bei Pauschalreisen",1,0,0,0,0,0.5,1.5]
["Ökonomie, Finanzen und Arbeit","Konsum","Armut, Verluste, Morbidität, Mortalität","Mängel/Gewährleistung",1,0,0,0,0,0.5,1.5]
["Ökonomie, Finanzen und Arbeit","Konsum","Armut, Verluste, Morbidität, Mortalität","Reisen mit eingeschränkter Mobilität",1,0,0,0,0,0,1]
["Ökonomie, Finanzen und Arbeit","Konsum","Armut, Verluste, Morbidität, Mortalität","Telekommunikationsverträge",1,0,0,0,0,0.5,1.5]
["Ökonomie, Finanzen und Arbeit","Konsum","Armut, Verluste, Morbidität, Mortalität","Unerlaubte Telefonwerbung",1,0,0,0,0,0.5,1.5]
["Ökonomie, Finanzen und Arbeit","Konsum","Armut, Verluste, Morbidität, Mortalität","Ungerechtfertigte Rechnungen",1,0,0,0,0,0.5,1.5]
["Ökonomie, Finanzen und Arbeit","Konsum","Armut, Verluste, Morbidität, Mortalität","Widerrufsrecht",1,0,0,0,0,0,1]
["Ökonomie, Finanzen und Arbeit","Konten","Armut, Verluste, Morbidität, Mortalität, Exklusion","Dispozinsen",1,1,0,0,0,0.5,2.5]
["Ökonomie, Finanzen und Arbeit","Konten","Armut, Verluste, Morbidität, Mortalität","Kontowechsel",1,1,0,0,0,0.5,2.5]
["Ökonomie, Finanzen und Arbeit","Kredite","Armut, Verluste, Morbidität, Mortalität, Exklusion","Kreditvergabe",1,1,0,0,0,0.5,2.5]
["Ökonomie, Finanzen und Arbeit","Kredite","Armut, Verluste, Morbidität, Mortalität, Exklusion","Scoring",1,1,0,0,0,0.5,2.5]
["Ökonomie, Finanzen und Arbeit","Lotterien","Ereignisse, Verluste, Armut, Morbidität, Mortalität","Gewinne",1,0,0,0,1,1,3]
["Ökonomie, Finanzen und Arbeit","Mieten","Armut, Verluste","Mietpreise",1,0,0,0,0,1,2]
["Ökonomie, Finanzen und Arbeit","Staatsanleihen","Armut, Verluste","Altersarmut",1,1,0,0,0,0.5,2.5]
["Ökonomie, Finanzen und Arbeit","Versicherungen","Verluste, Armut, Morbidität, Mortalität","Versicherungstypen",1,1,0,0,0,0.5,2.5]
["Technologien und Digitalisierung","Ablenkung durch Smartphone-Gebrauch","Ereignisse, Mortalität","Fußgängerunfälle",1,0.5,0,0,0,1,2.5]
["Technologien und Digitalisierung","Algorithmen","Armut, Verluste","AGB-Irreführung",1,1,0,0,0,0.5,2.5]
["Technologien und Digitalisierung","Algorithmen","Armut, Verluste","Digitaler Fussabdruck",1,1,0,0,0,0.5,2.5]
["Technologien und Digitalisierung","Algorithmen","Armut, Verluste","Diskriminierung, social scoring",1,1,0,0,0,0.5,2.5]
["Technologien und Digitalisierung","Algorithmen","Armut, Verluste","Invasion eigener Geräte",1,1,0,0,0,0.5,2.5]
["Technologien und Digitalisierung","Algorithmen","Armut, Verluste","Kostenfallen im Internet",1,1,0,0,0,0.5,{"$f":"E98+F98+G98+H98+I98+J98","v":2.5}]
["Technologien und Digitalisierung","Algorithmen","Armut, Verluste","Privatsphärenverletzung",1,1,0,0,0,0.5,2.5]
["Technologien und Digitalisierung","Algorithmen","Armut, Verluste","Recht an den eigenen Daten",1,1,0,0,0,0.5,2.5]
["Technologien und Digitalisierung","Algorithmen","Armut, Verluste","Roaming",1,0,0,0,0,1,2]
["Technologien und Digitalisierung","Algorithmen","Armut, Verluste","Systembindung",1,1,0,0,0,0.5,2.5]
["Technologien und Digitalisierung","Algorithmen","Armut, Verluste","Teure Kundenhotlines",1,0,0,0,0,0.5,1.5]
["Technologien und Digitalisierung","Algorithmen","Armut, Verluste","Urheberrecht im Internet",1,1,0,0,0,0,2]
["Technologien und Digitalisierung","Autonome Maschinen","Ereignisse, Mortalität, Verluste","Selbstfahrende Autos",1,1,0,0,0,0,2]
["Technologien und Digitalisierung","Biotechnologie-Unfälle","Ereignisse, Mortalität, Morbidität","Kontaminationen",0.5,1,0,0,0,0,1.5]
["Technologien und Digitalisierung","Computerspiele","Morbidität","Fettleibigkeit",1,1,0,0,0,0.5,2.5]
["Technologien und Digitalisierung","Datenschutz","Auftreten","elektronische Zahlungsoptionen (Privatsphäre, Verschlüsselung)",1,1,0,0,0,0.5,2.5]
["Technologien und Digitalisierung","Datenschutz","Auftreten","Email-Provider",1,1,0,0,0,0.5,2.5]
["Technologien und Digitalisierung","Datensicherheitsprobleme","Auftreten, wirtschaftliche Risiken","Cyberkriminalität",1,1,0,0,0,0.5,2.5]
["Technologien und Digitalisierung","Konsum","Armut, Verluste, Morbidität, Mortalität","online-shopping",1,0,0,0,0,1,2]
["Technologien und Digitalisierung","Künstliche Intelligenz","Ereignisse, Arbeitsplatzverluste, Mortalität","Panoptikum",0.5,1,0,0,0,0,1.5]
["Technologien und Digitalisierung","Magnetfelder","Ereignisse, Mortalität, Morbidität","Herzschrittmacher",1,1,0,0,0,1,3]
["Technologien und Digitalisierung","Mikrowellen","Ereignisse, Mortalität, Morbidität","Mikrowellengeräte",1,1,0,0,0,1,3]
["Technologien und Digitalisierung","Nuklearunfälle","Ereignisse, Mortalität, Morbidität","Deutsche Kraftwerke",0,0,1,0,0,1,2]
["Technologien und Digitalisierung","Pestizide, Herbizide, Fungizide","Mortalität, Morbidität","Glyphosat",1,1,0,0,0,1,3]
["Technologien und Digitalisierung","Überwachung durch Institutionen","Ereignisse","Emails",1,1,0,0,0,0.5,2.5]
["Technologien und Digitalisierung","Unfälle von Chemieanlagen","Ereignisse, Mortalität, Morbidität","Deutsche Großanlagen",0,0.5,1,0,0,0.5,2]
["Umwelt und Verkehrsrisiken","Biologische Vielfalt","Ereignisse","Bienensterben",0,1,0,0,0,0.5,1.5]
["Umwelt und Verkehrsrisiken","Bodenverluste","wirtschaftliche Verluste","Bodenerosionen, Überdüngung, Biokäufe",0.5,1,0,0,0,0.5,2]
["Umwelt und Verkehrsrisiken","Erdbeben","Ereignisse, Mortalität, Morbidität",null,0,0,1,1,0,0.5,2.5]
["Umwelt und Verkehrsrisiken","Fahrzeuge","Mortalität, Morbidität","Eisenbahn",1,1,0,0,0,1,3]
["Umwelt und Verkehrsrisiken","Fahrzeuge","Mortalität, Morbidität","Fahrrad",1,1,0,0,0,1,3]
["Umwelt und Verkehrsrisiken","Fahrzeuge","Mortalität, Morbidität","ÖPNV",1,1,0,0,0,1,3]
["Umwelt und Verkehrsrisiken","Gewitter","Ereignisse, Mortalität, Morbidität","Hagel, Blitzschläge, Sturm",0,0,0,1,0,1,2]
["Umwelt und Verkehrsrisiken","Globale Erwärmung","Wetterereignisse, Mortalität, Morbidität","Biokäufe",0.5,0,0,0,1,0.5,2]
["Umwelt und Verkehrsrisiken","Hitzewellen","Ereignisse, Mortalität, Morbidität",null,0,0,0,1,0,1,2]
["Umwelt und Verkehrsrisiken","Hochwasser","Ereignisse, Mortalität, Morbidität","Flüsse in Deutschland",0,0,0,1,0,1,2]
["Umwelt und Verkehrsrisiken","Lärmbelastung","Ereignisse, Mortalität, Morbidität",null,0,1,0,0,0,1,2]
["Umwelt und Verkehrsrisiken","Öffentliche Infrastruktur","Mortalität, Morbidität","Straßen, Versorgung",0,0,0,0,0,0.5,{"$f":"E130+F130+G130+H130+I130+J130","v":0.5}]
["Umwelt und Verkehrsrisiken","Rare Ereignisse","Ereignisse, Mortalität, Morbidität","umstürzende Bäume",0,1,0,0,0,1,2]
["Umwelt und Verkehrsrisiken","Reisesicherheit","Mortalität, Morbidität","Terrorismus in Reiseländern",1,0,0,0,0,0.5,1.5]
["Umwelt und Verkehrsrisiken","Trinkwasser","Ereignisse","Verschmutzungsrisiken",0.5,0.5,0,0,0,1,2]
["Umwelt und Verkehrsrisiken","Waldbrände","Ereignisse, Mortalität, Morbidität","Sommer in Deutschland",0,0,0,1,0,1,2]

{"sheet":"Dez18","index":5,"n_rows":108,"n_cols":13,"rows_kept":108,"cut":false,"hidden":false,"merged":[]}
["Risikoatlas-Risiko","Risikokategorie","mögliche Risiko-Endpunkte","Erläuterung/Beispiel","Gründe","Recherche-Frage [Häufigkeitsschätzungen / Wahrscheinlichkeitsschätzungen für Deutschland / typisch westliches Land FÜR EIN JAHR)","Zahlen Maria+Olga","Kommentare","Quellen für die Zahlen","Zahlen Olga wenn Dopplung","Kommentare2","Quellen für die Zahlen2","Spalte4"]
["Digitalisierung","Algorithmen","Armut, Verluste","Digitaler Fussabdruck","Ministry","Wie viele Menschen haben Geld verloren, weil sie im Internet spuren hinterlassen haben?","96 Menschen","29% aus 332, S. 11","https://www.pwc.de/de/handel-und-konsumguter/assets/cyber-security-identitaetsdiebstahl-2016.pdf","Durch Identitätsklau"]
["Digitalisierung","Algorithmen","Armut, Verluste","Diskriminierung, social scoring","Ministry","Wie viele Menschen zahlen aufgrund personalisierter Preise zuviel?"]
[{"$nulls":5},"Wie viele Menschen durften nicht auf Rechnung zahlen, obwohl der Anbieter das anbietet?"]
["Digitalisierung","Algorithmen","Armut, Verluste","Invasion eigener Geräte","Ministry","Von wie vielen Menschen wurde der Computer übernommen?","41% (allerdings nur Antworten auf Merkmal: Computer mit Viren infiziert)","Zugangsdaten ausspioniert:22%","https://de.statista.com/statistik/daten/studie/164419/umfrage/von-online-kriminalitaet-betroffene-internetnutzer-in-deutschland/"]
["Digitalisierung","Algorithmen","Armut, Verluste","Recht an den eigenen Daten","Ministry","Wie viele Menschen wurden benachteiligt, weil ihre Daten von Firmen an Dritte weitergegeben wurden?"]
["Digitalisierung","Algorithmen","Armut, Verluste","Urheberrecht im Internet, user generated content","Ministry","Wie viele Menschen haben Urheberrechte verletzt?","8085 Personen","Kriminalstatistik 2017, Jahrbuch Band 4, S. 108","https://www.bka.de/DE/AktuelleInformationen/StatistikenLagebilder/PolizeilicheKriminalstatistik/PKS2017/pks2017_node.html","https://irights.info/artikel/nach-der-reform-der-urheberrechts-fuer-bildung-und-wissenschaft-oer-bleiben-notwendig/29223"]
["Digitalisierung","Social Scoring","Armut, Verluste, Morbidität, Mortalität, Exklusion","Kreditvergabe","Ministry","Wie viele Menschen haben zuviel für Ihren Kredit bezahlt, weil sie ihre SocialMedia-Konten öffnen mussten?"]
["Digitalisierung","Datenschutz","Auftreten","elektronische Zahlungsoptionen (Privatsphäre, Verschlüsselung)","Ministry","Wie viele Menschen wurden beim elektronischen Bezahlen betrogen?","60 Menschen","6% aus 1000 Wo steht das? S.8","https://www.pwc.de/de/handel-und-konsumguter/assets/cyber-security-identitaetsdiebstahl-2016.pdf"]
["Digitalisierung","Datenschutz","Auftreten","Email-Provider","Ministry","Von wie vielen Menschen wurde das Emailpostfach gehackt?","20 Menschen","2% aus 1000 Seite.8 *Sonstiges (Email gechackt)","https://www.pwc.de/de/handel-und-konsumguter/assets/cyber-security-identitaetsdiebstahl-2016.pdf"]
["Digitalisierung","Datensicherheitsprobleme","Auftreten, wirtschaftliche Risiken","Cyberkriminalität","Ministry","-"]
["Digitalisierung","Überwachung durch Institutionen","Ereignisse","Emails","Ministry","Von wie vielen Menschen wurden Emails durch die Emailanbieter mitgelesen?","1 million users","Third-party app developers can read the emails of millions of Gmail users, a report from The Wall Street Journal highlighted today. Gmail’s access settings allows data companies and app developers to see people’s emails and view private details, including recipient addresses, time stamps, and entire messages.","https://www.theverge.com/2018/7/2/17527972/gmail-app-developers-full-email-access"]
["Digitalisierung","Künstliche Intelligenz","Ereignisse, Arbeitsplatzverluste, Mortalität","Panoptikum","Ministry","-"]
["Investitionen, Altersvorsorge & Armut","Jährliches Einkommen","Armut, Morbidität, Mortalität","Altersvorsorge, Altersarmut","Ministry","Wie viele Menschen kommen nicht ohne staatliche Unterstützung aus?","Fast acht Millionen Menschen (9,7% der Bevölkerung) - Ende 2015","Hartz IV, Sozialhilfe, Zuschüsse zur Rente: In Deutschland sind acht Millionen Menschen auf Hilfe vom Staat angewiesen. ","https://www.zeit.de/gesellschaft/zeitgeschehen/2016-11/statistisches-bundesamt-deutschland-sozialhilfe-hartz-4-leistungen-empfaenger","https://www.destatis.de/DE/PresseService/Presse/Pressemitteilungen/2016/11/PD16_419_228.html;jsessionid=037CF7281B2786FB324170D2432356C5.cae3"]
[{"$nulls":5},"Wie viele Menschen leben überwiegend von Kapitaleinnahmen?"]
["Investitionen, Altersvorsorge & Armut","Grauer Kapitalmarkt","Armut, Verluste","Altersvorsorge, Altersarmut","Ministry","Wie viele Menschen haben Geld verloren, weil sie in Produkte, die zum grauen Kapitalmarkt gehören, investierten?"]
[{"$nulls":5},"Wie viele Menschen sind die die Armut abgerutscht/haben alles verloren, weil sie im Internet in Produkte investierten, die zum grauen Kapitalmarkt gehören?","\"Zur Anzahl und Höhe der Schadensfälle durch Kapitalan- lagen im Grauen Kapitalmarkt gibt es keine zuverlässigen Zahlen\"","Am Grauen Kapitalmarkt entstehen nach Angaben des Deutschen Anlegerschutzbundes (DASB) jedes Jahr Schäden in Höhe von 20 bis 30 Milliarden Euro.","https://www.handelsblatt.com/finanzen/anlagestrategie/trends/grauer-kapitalmarkt-welchen-schaden-betrueger-anrichten/3525674.html"]
["Investitionen, Altersvorsorge & Armut","Fonds","Armut, Verluste","Altersvorsorge, Altersarmut","Ministry","Wie viele Menschen haben Geld verloren, weil sie in Fonds investierten?"]
[{"$nulls":5},"Wie viele Menschen sind die die Armut abgerutscht/haben alles verloren, weil sie in Fonds investierten?"]
["Investitionen, Altersvorsorge & Armut","Investitionsrisiken","Armut, Verluste","Altersvorsorge, Altersarmut","Ministry","Wie viele Menschen haben Geld verloren, weil sie im Internet investierten?"]
[{"$nulls":5},"Wie viele Menschen sind die die Armut abgerutscht/haben alles verloren, weil sie im Internet investierten?"]
["Investitionen, Altersvorsorge & Armut","ETFs","Armut, Verluste","Altersvorsorge, Altersarmut","Ministry","Wie viele Menschen haben Geld verloren, weil sie in ETFs investierten?"]
[{"$nulls":5},"Wie viele Menschen sind die die Armut abgerutscht/haben alles verloren, weil sie in ETFs investierten?"]
["Investitionen, Altersvorsorge & Armut","Mieten","Armut, Verluste","Mietpreise","Ministry","Wie viele Menschen mussten umziehen, weil sie sich die Miete nicht mehr leisten konnten?","1205 Menschen","Demnach sind zwischen März 2012 und März 2013 allein aus Charlottenburg-Wilmersdorf 325 Menschen nach Spandau gezogen, insgesamt zogen 1545 Transferleistungsempfänger nach Spandau und 749 weg. Wie in Spandau kamen auch in Marzahn-Hellersdorf im selben Zeitraum knapp 800 neue Transferleistungsempfänger hinzu, während zentrale Bezirke wie Mitte mehr als 1100, Friedrichshain-Kreuzberg fast 900 Bedürftige verloren.","https://www.tagesspiegel.de/berlin/steigende-mieten-haeuserkampf-in-berlin/8615676-all.html"]
[{"$nulls":5},"Bei wie vielen Menschen stiegen die Mieten schneller als Ihre Einnahmen?",null,null,"https://www.postbank.de/postbank/pr_presseinformation_2016_04_21_postbank_studie_2016_leben_in_der_stadt.html"]
["Investitionen, Altersvorsorge & Armut","Staatsanleihen","Armut, Verluste","Altersvorsorge, Altersarmut","Ministry","Wie viele Menschen haben Geld verloren, weil sie in Staatsanleihen investierten?"]
[{"$nulls":5},"Wie viele Menschen sind die die Armut abgerutscht/haben alles verloren, weil sie in Staatsanleihen investierten?"]
["Investitionen, Altersvorsorge & Armut","Investitionsrisiken","Armut, Verluste","Altersvorsorge, Altersarmut","Ministry","Wie viele Menschen wurden vom Berater betrogen?"]
[{"$nulls":5},"Wie viele Menschen sind die die Armut abgerutscht/haben alles verloren, weil sie vom Berater betrogen wurden?"]
["Investitionen, Altersvorsorge & Armut","Investitionsrisiken","Armut, Verluste","Altersvorsorge, Altersarmut","Ministry","Wie vielen Menschen wurde vom Berater ein Produkt verkauft, welches nicht zu Ihnem Bedarf passt?","247 (von 358)","\"In 247 Fällen (in 69% der Fälle) der Stichprobe kamen die Berater zu dem Schluss, dass das Produkt zum Zeit- punkt des Vertragsabschlusses nicht zum Risikopro-fil des Verbrauchers passte.\"","https://www.marktwaechter.de/sites/default/files/downloads/schadensfaelle-auf-dem-grauen-kapitalmarkt.pdf","S. 19 Aber Achtung - Zur Anzahl und Höhe der Schadensfälle durch Kapitalan- lagen im Grauen Kapitalmarkt gibt es keine zuverlässigen Zahlen12. Es ist davon auszugehen, dass Problemfälle von Anlegern, die sich ratsuchend an Verbraucherzentralen wenden nur den Punkt auf der Spitze des Eisberges darstellen."]
[{"$nulls":5},"Wie viele Menschen sind die die Armut abgerutscht/haben alles verloren, weil ihnen vom Berater ein Produkt verkauft wurde, was nicht zu ihrem Bedarf passte."]
["Investitionen, Altersvorsorge & Armut","Jährliches Sparvolumen","Armut, Verluste, Morbidität, Mortalität","Altersvorsorge, Altersarmut","Ministry","Wie viele Menschen haben inflationsbereinigte beim Sparen Geld verloren?"]
["Investitionen, Altersvorsorge & Armut","Kredite","Armut, Verluste, Morbidität, Mortalität, Exklusion","Kreditvergabe","Ministry","Wie viele Menschen haben einen unnötig überteuerten Kredit aufgenommen?"]
["Investitionen, Altersvorsorge & Armut","Lotterien","Ereignisse, Verluste, Armut, Morbidität, Mortalität","Gewinne","Ministry","Wie viele Menschen haben Geld verloren, weil sie Lotto spielen?","7188 Menschen ","Aklgemeine Glücksspiele S.107 n=11501\nDagegen schätzen im Jahr 2015 62,5 %, dass sie einen Verlust erlitten haben. Auch die hier angege- benen Beträge schwanken erheblich: Im Median betragen sie 50 Euro, IQB = 20 bis 150 €). 2013 betrug dieser Anteil 64,7 % (Median: 60 Euro, IQB = 20 bis 200 €). Bei 27,1 % ist die Bilanz im Jahr 2015 nach eigener Einschätzung ausgeglichen (2013: 24,7 %).","https://www.berlin-suchtpraevention.de/wp-content/uploads/2016/10/2015_BZgA_Ergebnisbericht_Glcksspielsucht.pdf"]
[{"$nulls":5},"Wie viele Menschen sind die die Armut abgerutscht/haben alles verloren, weil sie Lotto spielen?",null,null,"https://www.berlin-suchtpraevention.de/wp-content/uploads/2016/10/2015_BZgA_Ergebnisbericht_Glcksspielsucht.pdf"]
["Investitionen, Altersvorsorge & Armut","Glücksspiel","Verluste, Armut, Morbidität, Mortalität","Onlinepoker","Ministry","Wie viele Menschen haben Geld beim Onlinepoker verloren?",null,null,"https://www.berlin-suchtpraevention.de/wp-content/uploads/2016/10/2015_BZgA_Ergebnisbericht_Glcksspielsucht.pdf"]
[{"$nulls":5},"Wie viele Menschen sind die die Armut abgerutscht/haben alles verloren durch Onlinepoker?",null,null,"http://www.taz.de/!5170626/   "]
["Investitionen, Altersvorsorge & Armut","Glücksspiel","Verluste, Armut, Morbidität, Mortalität","allgemein","Ministry","Wie viele Menschen haben Geld bei Glücksspielen im Internet verloren?"]
[{"$nulls":5},"Wie viele Menschen sind die die Armut abgerutscht/haben alles verloren durch Glücksspiele im Internet?",null,null,"https://www.automatisch-verloren.de/de/gluecksspiel/zahlen-und-fakten-zu-gluecksspiel.html","\"weitere 0,82% (215.000 Personen) fallen in die Kategorie „pathologische Spieler und Spielerinnen“, bei ca. 16% dieser pathologischen Spieler*innen übersteigt der Schuldenstand einen Gesamtwert von 25.000 €"]
["Investitionen, Altersvorsorge & Armut","Glücksspiel","Verluste, Armut, Morbidität, Mortalität","Smartphone",null,"Wie viele Menschen haben Geld durch das Spielen auf dem Smartphone verloren?"]
["Investitionen, Altersvorsorge & Armut","Glücksspiel",null,"Smartphone",null,"Wie viele Menschen haben gegen ihren Wunsch/ohne ihr Wissen Verträge oder Käufe innerhalb von Apps getätigt?"]
["Investitionen, Altersvorsorge & Armut","Immobilien","Verluste, Armut, Morbidität, Mortalität","Altersvorsorge, Altersarmut","Ministry","Wie viele Menschen haben Geld verloren, weil sie Immobilien erwarben?"]
[{"$nulls":5},"Wie viele Menschen sind die die Armut abgerutscht/haben alles verloren, weil sie Immobilien erwarben?"]
["Investitionen, Altersvorsorge & Armut","Immobilien","Verluste, Armut, Morbidität, Mortalität","Altersvorsorge, Altersarmut","Ministry","Wie viele Menschen haben Geld verloren, weil sie bauen oder sanieren?"]
[{"$nulls":5},"Wie viele Menschen sind die die Armut abgerutscht/haben alles verloren, weil sie bauen oder sanieren?"]
["Kaufen, Verträge, und Schulden","Schulden","Armut, Morbidität, Mortalität, Verluste","Schuldenfallen","Ministry","Wie viele Menschen sind in eine Schuldenfalle geraten?"]
["Kaufen, Verträge, und Schulden","Schulden","Armut, Morbidität, Mortalität, Verluste","Privatinsolvenz",null,"Wie viele Menschen meldeten Privatinsolvenz an?","94079 in 2017 in Deutschland",null,"https://de.statista.com/statistik/daten/studie/150565/umfrage/privatinsolvenzen-in-deutschland-seit-2000/"]
["Kaufen, Verträge, und Schulden","Schulden","Armut, Morbidität, Mortalität, Verluste","Rechnungen",null,"Wie viele Menschen konnten eine Rechnung endgültig nicht begleichen?",null,null,"https://www.creditreform.de/fileadmin/user_upload/crefo/download_de/news_termine/wirtschaftsforschung/schuldneratlas/2017_Analyse_SchuldnerAtlas.pdf"]
["Kaufen, Verträge, und Schulden","Schulden","Armut, Morbidität, Mortalität, Verluste","Kredit ",null,"Wie viele Menschen konnten ihre Kreditzahlungen nicht mehr leisten?",null,null,"https://www.creditreform.de/fileadmin/user_upload/crefo/download_de/news_termine/wirtschaftsforschung/schuldneratlas/2017_Analyse_SchuldnerAtlas.pdf"]
["Kaufen, Verträge, und Schulden","Algorithmen","Armut, Verluste","Kostenfallen im Internet","Ministry","Wie viele Menschen haben gegen ihren Wunsch/ohne ihr Wissen, im Internet viel mehr zahlen müssen als vereinbart war?"]
["Kaufen, Verträge, und Schulden","Algorithmen","Armut, Verluste","Kostenfalle Echte Welt",null,"Wie viele Menschen haben gegen ihren Wunsch/ohne ihr Wissen, außerhalb des Internets viel mehr zahlen müssen als vereinbart war?"]
["Kaufen, Verträge, und Schulden","Algorithmen","Armut, Verluste","Systembindung","Ministry","Wie viele Menschen haben Folgeprodukte von einem Hersteller gekauft, weil Alternativen inkompatibel mit dem vorhanden waren (locked-in)?"]
["Kaufen, Verträge, und Schulden","Algorithmen","Armut, Verluste","Teure Kundenhotlines","Ministry","Wie viele Menschen haben eine Kundenhotline angerufen?"]
["Kaufen, Verträge, und Schulden","Algorithmen","Armut, Verluste","Teure Kundenhotlines",null,"Wie viele Menschen haben eine Kundenhotline zum Ortstarif angerufen?"]
["Kaufen, Verträge, und Schulden","Algorithmen","Armut, Verluste","Teure Kundenhotlines",null,"Wie viele Menschen haben Kundenhotline zum Spezialtarif angerufen?"]
["Kaufen, Verträge, und Schulden","Algorithmen","Armut, Verluste","Teure Kundenhotlines",null,"Wie viele Menschen haben mehr als 15 Minuten in einer Hotline gewartet?","zwischen 46 und 84 Anrufer","Allerdings: nur von M-Budget (Anbieter swisscom) und nur 2 Testanrufe gemacht","https://www.blick.ch/news/wirtschaft/m-budget-spart-bei-handy-hotline-50-minuten-in-der-warteschleife-id5252385.html"]
["Kaufen, Verträge, und Schulden","Algorithmen","Armut, Verluste","Teure Kundenhotlines",null,"Wie viele Menschen haben mehr als 30 Minuten in einer Hotline gewartet?",46,"Allerdings: nur von M-Budget (Anbieter swisscom) und nur 2 Testanrufe gemacht","https://www.blick.ch/news/wirtschaft/m-budget-spart-bei-handy-hotline-50-minuten-in-der-warteschleife-id5252385.html"]
["Kaufen, Verträge, und Schulden","Konsum","Armut, Verluste, Morbidität, Mortalität","Ausfälle und Verspätungen, Schlichtungen","Ministry","Wie viele Menschen hatten eine Busverspätung über 30 Minuten?"]
["Kaufen, Verträge, und Schulden","Konsum","Armut, Verluste, Morbidität, Mortalität","Ausfälle und Verspätungen, Schlichtungen","Ministry","Wie viele Menschen hatten eine Busverspätung über 1 Stunde?"]
["Kaufen, Verträge, und Schulden","Konsum","Armut, Verluste, Morbidität, Mortalität","Ausfälle und Verspätungen, Schlichtungen",null,"Wie viele Menschen hatten eine Bahnverspätung über 30 Minuten?","30,57 mio","insgesamt DB Reisende Fernverkehr in Mio 142,2 (2017) Punktlichkeit Fernverkehr 78,5%, d.h Verspätung 21,5% (2017)","https://www.deutschebahn.com/resource/blob/1774446/455c0e001500b567cc0010d53e52cccf/Daten---Fakten-2017-data.pdf https://www.heise.de/tr/artikel/Statistik-der-Woche-Verspaetungen-der-Deutschen-Bahn-4179218.html"]
["Kaufen, Verträge, und Schulden","Konsum","Armut, Verluste, Morbidität, Mortalität","Ausfälle und Verspätungen, Schlichtungen",null,"Wie viele Menschen hatten eine Bahnverspätung über 1 Stunde?"]
["Kaufen, Verträge, und Schulden","Konsum","Armut, Verluste, Morbidität, Mortalität","Ausfälle und Verspätungen, Schlichtungen",null,"Wie viele Menschen hatten eine Flugverspätung über 1 Stunde?","Millionen",null,"https://karrierebibel.de/verspaeteter-flug-entschaedigung/"]
["Kaufen, Verträge, und Schulden","Konsum","Armut, Verluste, Morbidität, Mortalität","Ausfälle und Verspätungen, Schlichtungen",null,"Wie viele Menschen hatten eine Flugverspätung über 2 Stunden?",160,"in Deutschland, Berlin. Oder kann ich meine Reise womöglich gar nicht erst antreten wie neulich die 160 Passagiere in Berlin-Tegel, die 16 Stunden auf ihren Flug nach Mallorca warteten – um dann zu erfahren, dass er gestrichen wurde?\nChaos schon seit Monaten\nDie ersten Fluggäste hatten sich am 10. Juli bereits um vier Uhr in der Früh in Tegel eingefunden, abgesagt wurde der Flug von Laudamotion erst am Abend. Das Flugzeug konnte aus technischen Gründen nicht von Mallorca aus starten, fehlte also in Berlin. Ein Ersatzjet kam so spät in Tegel an, dass dessen Crew nicht mehr weiterfliegen durfte, weil sie sonst die vorgeschriebene Betriebszeit überschritten hätte.mit dazu kopieren hier in den Kommentar, ich kann den Artikel zB nicht öffnen..","https://www.handelsblatt.com/unternehmen/handel-konsumgueter/flugverspaetungen-chaos-am-himmel-darum-werden-fluggesellschaften-immer-unpuenktlicher/22809308.html?ticket=ST-149805-oPIhYYZlNtRgH9RW07cp-ap4"]
["Kaufen, Verträge, und Schulden","Konsum","Armut, Verluste, Morbidität, Mortalität","Beschädigtes oder verlorenes Gepäck","Ministry","Wie viele Menschen haben ihr Gepäck bei einem Flug verloren?","8,06 Personen / Tausend (2016) - in Europa","8,06 Gepäckstücke verschwinden in Europa pro 1000 Passagiere, S. 21","http://comms.sita.aero/rs/089-zse-857/images/baggage-report-2017.pdf","Zahlen Olga: 26 mio ","Weltweit, 2014","https://www.welt.de/reise/article151707425/An-diesem-Flughafen-geht-Gepaeck-niemals-verloren.html"]
["Kaufen, Verträge, und Schulden","Konsum","Armut, Verluste, Morbidität, Mortalität","Beschädigtes oder verlorenes Gepäck",null,"Bei wie vielen Menschen wurde das Gepäck bei einem Flug beschädigt?","8,06 Personen / Tausend (2016) - in Europa","mishandled bags - schließt verschwinden und beschädigen ein?, S. 21","http://comms.sita.aero/rs/089-zse-857/images/baggage-report-2017.pdf","Zahlen Olga: 610 ","(61% aus 1000) Infografika ","https://www.welt.de/reise/article139000168/Auf-Fluegen-geht-wieder-mehr-Gepaeck-verloren.html"]
["Kaufen, Verträge, und Schulden","Konsum","Armut, Verluste, Morbidität, Mortalität","Haustürgeschäfte","Ministry","Wie viele Menschen wurden durch einen Vertreter betrogen?"]
["Kaufen, Verträge, und Schulden","Konsum","Armut, Verluste, Morbidität, Mortalität","Inkasso: Unseriöse Geschäftspraktiken","Ministry","Wie viele Menschen erhielten unberechtigte Inkassoforderungen?","793 Fälle von 1413 Fällen","56%, 2015, Deutschland","https://www.verbraucherzentrale.de/sites/default/files/migration_files/media237951A.pdf"]
["Kaufen, Verträge, und Schulden","Konsum","Armut, Verluste, Morbidität, Mortalität","Kreditkartenschulden","Ministry","Wie viele Menschen hatten Kreditkartenschulden?","7% in Deutschland","Befragte: 12.743 Personen in 12 Europäischen Ländern + Türkei","https://www.google.com/url?sa=t&rct=j&q=&esrc=s&source=web&cd=2&ved=2ahUKEwj59o6a3pffAhUQp4sKHTghB0AQFjABegQICBAC&url=https%3A%2F%2Fwww.presseportal.de%2Fdownload%2Fdocument%2F312756-umfrageergebnisse-dispo-nutzung-2015.pdf&usg=AOvVaw29t51ca1TN77Eh8-BRGgkP","Zahlen Olga: 6,8 Millionen","\"Nach dem neuen Schuldneratlas gelten zum Stichtag 1. Oktober 2016 mehr als 6,8 Millionen Bürger über 18 Jahre in Deutschland als Personen, die „nachhaltige Zahlungsstörungen“ aufweisen.\"","https://www.welt.de/finanzen/article159415757/So-verschuldet-sind-die-Deutschen.html"]
["Kaufen, Verträge, und Schulden","Konsum","Armut, Verluste, Morbidität, Mortalität","Kreditkartenschulden",null,"Wie viele Menschen konnten ihre Kreditkartenschulden nicht begleichen?"]
["Kaufen, Verträge, und Schulden","Konsum","Armut, Verluste, Morbidität, Mortalität","Mängel bei Pauschalreisen","Ministry","Wie viele Menschen erlebten Mängel bei Pauschalreisen="]
["Kaufen, Verträge, und Schulden","Konsum","Armut, Verluste, Morbidität, Mortalität","Mängel/Gewährleistung, geplante Obsoleszens","Ministry","Wie viele Menschen erhoben einen Gewährleistungsanspruch innerhalb des ersten Jahres?"]
["Kaufen, Verträge, und Schulden","Konsum","Armut, Verluste, Morbidität, Mortalität","Mängel/Gewährleistung, geplante Obsoleszens",null,"Wie viele Menschen erhoben einen Gewährleistungsanspruch innerhalb der zwei Jahre?"]
["Kaufen, Verträge, und Schulden","Konsum","Armut, Verluste, Morbidität, Mortalität","Mängel/Gewährleistung, geplante Obsoleszens",null,"Wie viele Menschen erlebten, dass eine gewährleistungspflichtige Ware kurz nach 2 Jahren kaputt ging?"]
["Kaufen, Verträge, und Schulden","Konsum","Armut, Verluste, Morbidität, Mortalität","Unerlaubte Telefonwerbung","Ministry","Wie viele Menschen wurden mit Telefonwerbung belästigt?","52.000 in 2017 (bis Ende Nov 2017)","Allerdings lediglich eingegangene Beschwerden, Dunkelziffer vermutlich höher","https://www.bundesnetzagentur.de/SharedDocs/Pressemitteilungen/DE/2017/28122017_Telekommunikation.html"]
["Kaufen, Verträge, und Schulden","Konsum","Armut, Verluste, Morbidität, Mortalität","Unerlaubte Telefonwerbung",null,"Wie viele Menschen wurden durch telefonische Angebote betrogen?"]
["Kaufen, Verträge, und Schulden","Konsum","Armut, Verluste, Morbidität, Mortalität","Ungerechtfertigte Rechnungen","Ministry","Wie vielen Menschen wurden ungerechtfertige Rechnungen zugestellt, für Waren, die sie nie gekauft hatten?","89,64 Personen ","27% aus 332 , S. 12","https://www.pwc.de/de/handel-und-konsumguter/assets/cyber-security-identitaetsdiebstahl-2016.pdf"]
["Kaufen, Verträge, und Schulden","Konsum","Armut, Verluste, Morbidität, Mortalität","online-shopping","Ministry","Wie viele Menschen wurden in Onlineshops betrogen (Ware/Geld weg)?","4,4 Millionen",null,"https://www.daserste.de/information/ratgeber-service/kriminalreport/fake-shops-102.html"]
["Kaufen, Verträge, und Schulden","Konsum","Armut, Verluste, Morbidität, Mortalität","online-shopping",null,"Wie viele Menschen wurden bei Online-Kleinanzeigenportalen betrogen (Ware/Geld weg)?"]
["Kaufen, Verträge, und Schulden","Konsum","Armut, Verluste, Morbidität, Mortalität","online-shopping",null,"Wie viele Menschen wurden bei Online-Auktionshäusern betrogen (Ware/Geld weg)?"]
["Kaufen, Verträge, und Schulden","Konsum","Auftreten, wirtschaftliche Verluste","Fallbezogene Erfolgsquote bei Verbraucherklagen (z.B. bei Kauf & Reklamation)","ist für das Ministerium vermutlich wichtig","Wie viele Menschen waren mit Verbraucherklagen erfolglos?"]
["Kaufen, Verträge, und Schulden","Konsum","Auftreten, wirtschaftliche Verluste","Fallbezogene Erfolgsquote bei Verbraucherklagen (z.B. bei Kauf & Reklamation)",null,"Wie viele Verbraucher hatten einen Klageanspruch?"]
["Kriminalitätsrisiken / Cybercrime","Kriminalität","Kriminalitätsfolgen","Cyberkriminalität: Identitätsdiebstahl",null,"Wie viele Menschen erlebten Identitätsdiebstahl?","330 Menschen","33% aus 1000, S. 8","https://www.pwc.de/de/handel-und-konsumguter/assets/cyber-security-identitaetsdiebstahl-2016.pdf"]
["Kriminalitätsrisiken / Cybercrime","Kriminalität","Kriminalitätsfolgen","Cyberkriminalität: Missbrauch intimer Daten",null,"Wie viele Menschen erlebten, wie private Daten an die Öffentlichkeit gebracht wurden?"]
["Kriminalitätsrisiken / Cybercrime","Kriminalität","Opfer, Mortalität, Kriminalitätsfolgen, Verletzungen","Cyberkriminalität: Onlinebanking","die Deutschen sind ja bekanntermaßen extrem konservativ, was diese Dinge angeht und es wird ja bereits angezweifelt, ob sich die Einführung von smartphone-Zahlungsmethoden hier lohnt. Aber die werden kommen. Sprich: wird relevant werden. Ministerium widmet sich dem Thema auch unter der Überschrift ‘Sicherheit im Internet’. ","Wie viele Menschen erlebten einen Schaden durch das Eindringen in ihre Bankaccounts beim Onlinebanking?","190,19 Personen (2014)","19% von 1001 Personen (\"Ist Ihnen schon einmal ein finanzieller Schaden im Zusammenhang mit Online-Banking entstanden?\" - Zusammengerechnete Antwortmöglichkeiten: Schadsoftware und finanzieller Schaden + finanzielle Schadensfälle im Umfeld\", S. 12","https://initiatived21.de/app/uploads/2017/01/d21_fiducia_studie_onlinebanking_2014.pdf","Zahlen Olga: 4500","Dem Bundeskriminalamt wurden 2015 rund 4500 Fälle von Phishing im Finanzsektor gemeldet. Der Schaden: 18 Millionen Euro, im Schnitt wurde jeder betroffene Kunde um 4000 Euro gebracht.","https://www.wiwo.de/finanzen/geldanlage/online-banking-so-unsicher-ist-ihr-konto/19367126.html"]
["Kriminalitätsrisiken / Cybercrime","Kriminalität","Opfer, Mortalität, Kriminalitätsfolgen, Verletzungen","Kreditkartenbetrug auf Auslandsreise","scheint dem Ministerium wichtig zu sein und dazu gibt es mit Sicherheit Datensätze","Wie viele Menschen wurden bei der Kreditkartenzahlung im Ausland betrogen?"]
["Kriminalitätsrisiken / Cybercrime","Kriminalität","Opfer, Mortalität, Kriminalitätsfolgen, Verletzungen","Kreditkartenbetrug auf Auslandsreise",null,"Wie viele Menschen erlitten einen Schaden beim Verlust ihrer Kreditkarte?","60 Menschen","6% von 1000, S. 8 (\"ja, meine Kreditkarten-Daten wurden gestohlen und missbraucht\")"]
["Kriminalitätsrisiken / Cybercrime","Kriminalität","Opfer, Mortalität, Kriminalitätsfolgen, Verletzungen","Kreditkartenbetrug auf Auslandsreise",null,"Wie viele Menschen erlitten einen Schaden beim Verlust ihrer EC-Karte?"]
["Kriminalitätsrisiken / Cybercrime","Kriminalität","Opfer, Mortalität, Kriminalitätsfolgen, Verletzungen","Kreditkartenbetrug auf Auslandsreise",null,"Wie viele Menschen erlitten einen Schaden beim Verlust ihres Smartphones [abgesehen vom Gerätewert/Simkartenwert]"]
["Nachhaltiger Konsum","Konsum","Armut, Verluste, Morbidität, Mortalität","Nachhaltiger Konsum","Ministry","Wie viele Menschen haben nachhaltige Produkte gekauft?","350 Personen","35% aus 1000 Befragten, Juni 2013","https://de.statista.com/statistik/daten/studie/262679/umfrage/umfrage-zum-kauf-nachhaltiger-produkte/"]
["neue Technologien","Genetisches Engineering","Ereignisse, wirtschaftliche Risiken, Morbidität","genetisch modifizierte Lebensmittel","Ministry","Wie viele Menschen kauften genetisch modifizierte Lebensmittel [z.B. aus dem Ausland]?","31 Prozent der Befragten sagen, dass sie kein oder eher kein Problem damit hätten, gen- technisch veränderte Lebensmittel zu essen.","Anzahl Befragte nicht angegeben","https://www.bmu.de/fileadmin/Daten_BMU/Pools/Broschueren/naturbewusstseinsstudie_2017_de_bf.pdf","Zahlen Olga: 141","7% aus 2050 Befragten haben kein Problem damit, gentechnisch veränderte Lebensmittel zu essen","https://www.keine-gentechnik.de/dossiers/meinungsumfragen/#gsc.tab=0"]
["Versicherungen","Versicherungen","Auftreten, wirtschaftliche Verluste","Nutzung Haftpflichtversicherung","Ministry","Wie viele Menschen reklamierten einen Schadensfall bei ihrer Privathaftpflichtversicherung?"]
["Versicherungen","Versicherungen","Verluste, Armut, Morbidität, Mortalität","Versicherungstypen","Ministry","Wie viele Menschen schlossen eine Restschuldversicherung zu ihrem Kredit ab?"]
["Versicherungen","Versicherungen","Verluste, Armut, Morbidität, Mortalität","Versicherungstypen",null,"Wie viele Menschen reklamierten einen Schadensfall bei ihrer Hausratversicherung?"]
["Versicherungen","Versicherungen","Verluste, Armut, Morbidität, Mortalität","Versicherungstypen",null,"Wie viele Menschen nahmen ihre Rechtsschutzversicherung in Anspruch?"]
["Versicherungen","Versicherungen","Verluste, Armut, Morbidität, Mortalität","Versicherungstypen",null,"Wie viele Menschen nahmen ihre private Unfallversicherung in Anspruch?"]
["Versicherungen","Versicherungen","Verluste, Armut, Morbidität, Mortalität","Versicherungstypen",null,"Wie viele Menschen nahmen ihre Schuldbriefversicherung in Anspruch?"]
["Versicherungen","Versicherungen","Verluste, Armut, Morbidität, Mortalität","Versicherungstypen",null,"Wie viele Menschen nahme ihre Kft-Vollkasko-Versicherung in Anspruch?"]
["Versicherungen","Versicherungen","Verluste, Armut, Morbidität, Mortalität","Versicherungstypen",null,"Wie viele Menschen verloren Geld mit ihrer Kapitallebensversicherung?"]
["Versicherungen","Versicherungen","Verluste, Armut, Morbidität, Mortalität","Versicherungstypen",null,"Wie viele Menschen nahme ihre Kft-Haftpflichtversicherung in Anspruch?"]
{"$rows_empty":7}
[null,null,null,"Maria"]
[null,null,null,"Olga"]

{"sheet":"Jan19","index":6,"n_rows":94,"n_cols":25,"rows_kept":94,"cut":false,"hidden":false,"merged":[]}
["Risikoatlas-Risiko","Spalte1","Label","Spalte2","Probability","Out of 100,000","Out of 100,0009","Out of 100,0008","Out of 100,0007","Out of 100,0006","Out of 100,0005","Out of 100,0004","Out of 100,0003","Out of 100,0002","Out of 100,001","Jahr","Evidenzqualität","Unsicherheit","Quellen für die Zahlen","Zahlen Maria(Blau)+Olga(Gelb)","Kommentare","Zahlen Olga wenn Dopplung","Kommentare2","Quellen für die Zahlen2","Spalte4"]
["Topschlüssel","Mutterschlüssel","Betroffene…","SOC code","probability",null,"Fingerfertigkeit","Handfertigkeit","Originalität","Künstlerische Begabung","Soziale Wahrnehmungsvermögen","Verhandlungsfähigkeit","Überzeugungsfähigkeit","Anderen assistieren und fürsorgen"]
["Investitionen, Altersvorsorge & Armut",null,"Glücksspiele unterm Strich ohne Gewinn",null,{"$f":"F3/100000","v":0.9},90000,1,1,1,1,1,1,1,1,"Spieler",2015,"Sehr niedrig","Alter der Daten","https://www.berlin-suchtpraevention.de/wp-content/uploads/2016/10/2015_BZgA_Ergebnisbericht_Glcksspielsucht.pdf "]
["Investitionen, Altersvorsorge & Armut",null,"Zu riskant investiert",null,0.68994,68994,1,1,1,1,1,1,1,1,"Grauer-Kapitalmarkt-Investoren",2017,"Sehr niedrig","Selbstselektion, subjektive Ratings","https://www.marktwaechter.de/sites/default/files/downloads/schadensfaelle-auf-dem-grauen-kapitalmarkt.pdf","247 (von 358)","\"In 247 Fällen (in 69% der Fälle) der Stichprobe kamen die Berater zu dem Schluss, dass das Produkt zum Zeit- punkt des Vertragsabschlusses nicht zum Risikopro-fil des Verbrauchers passte.\"","https://www.marktwaechter.de/sites/default/files/downloads/schadensfaelle-auf-dem-grauen-kapitalmarkt.pdf"]
["Kaufen, Verträge, und Schulden",null,"Anruf zum Ortstarif",null,0.64500000000000002,{"$f":"0.645*100000","v":64500},1,1,1,1,1,1,1,1,"Serviceanrufe",2017,"Sehr niedrig","Niedrige externe Validität","VATM_TK-Marktstudie-2018_091018_f"]
["Digitalisierung",null,"Opfer von Cyberkriminalität",null,0.4425,{"$f":"(38000+39000+2*50000)/4","v":44250},1,1,1,1,1,1,1,1,"erwachsene Internetnutzer",2018,"Niedrig","Niedrige Validität","http://now.symassets.com/content/dam/norton/global/pdfs/norton_cybersecurity_insights/DE_NCSIR_2017.pdf","38% Norton, 39% Schufa, beides für 2017 - gleichgewichtet; Bitkom 2019 hat Zahlen für 2018, doppelt gewichtet","einschließlich Virenbefall!","Schufa-Report 2018"]
["Kaufen, Verträge, und Schulden",null,"Haben Schulden",null,0.42750000000000005,{"$f":"17.271/40.4*100000","v":42750.000000000007},1,1,1,1,1,1,1,1,"Haushalte",2013,"Niedrig","Alter der Daten","https://www.destatis.de/DE/Publikationen/Thematisch/EinkommenKonsumLebensbedingungen/Ueberschuldung/EVS_GeldImmobilienvermoegenSchulden2152602139004.pdf?__blob=publicationFile "]
["Haushalt",null,"Tauschen Küchenschwamm zu selten aus",null,0.39,39000,1,1,1,1,1,1,1,1,"Verbraucher",2013,"Sehr niedrig","Niedrige externe Validität","https://www.ages.at/fileadmin/AGES2015/Themen/Lebensmittel_Dateien/Lebensmittelsicherheit_und_Hygiene_im_Privathaushalt_13_12_2013.pdf"]
["Digitalisierung",null,"Erleben, dass Produkt beim Einzelhändler im Internet ständig im Preis schwankt",null,0.34799999999999998,34800,1,1,1,1,1,1,1,1,"Internetnutzer",2017,"Niedrig","Niedrige Validität","https://wiwi.hs-duesseldorf.de/personen/nikola.ziehe/Documents/Kraemer%20Kalka%20Ziehe%20-%20Personalisiertes%20und%20dynamisches%20Pricing%20aus%20Einzelhandels-%20und%20Verbrauchersicht%20261110F.pdf","34.8% der Stichprobe von Geschäften im Online-Einzelhandel mit mehr als 4 Preisänderungen über 3 Monaten 2016-2017."]
["Digitalisierung",null,"Erleben, dass Produkt beim Einzelhändler ständig im Preis schwankt",null,0.33300000000000002,33300,1,1,1,1,1,1,1,1,"Internetnutzer",2017,"Sehr niedrig","Mangel an Evidenz","https://wiwi.hs-duesseldorf.de/personen/nikola.ziehe/Documents/Kraemer%20Kalka%20Ziehe%20-%20Personalisiertes%20und%20dynamisches%20Pricing%20aus%20Einzelhandels-%20und%20Verbrauchersicht%20261110F.pdf","33,3% der Einzelhändler berichten dynamische Preisbildung bzw. individuelle Preisdiffernzierung einzusetzen","33% der stationären Einzelhandel Preismanagers setzen auf Dynamisch Pricing 2016"]
["Investitionen, Altersvorsorge & Armut",null,"Verlustreiche Restschuldversicherung",null,0.32,32000,1,1,1,1,1,1,1,1,"Ratenkreditnutzer",2018,"Niedrig","Stichprobe","https://www.bfach.de/media/file/24871.Marktstudie_2018_Konsum-Kfz-Finanzierung_BFACH.pdf"]
["Kaufen, Verträge, und Schulden",null,"Kostenloser Anruf",null,0.28399999999999997,{"$f":"0.284*100000","v":28399.999999999996},1,1,1,1,1,1,1,1,"Serviceanrufen",2017,"Sehr niedrig","Niedrige externe Validität","VATM_TK-Marktstudie-2018_091018_f"]
["Investitionen, Altersvorsorge & Armut",null,"Illegale Internet-Casinospiele problematisch/krankhaft spielen",null,0.26900000000000002,{"$f":"0.269*100000","v":26900},1,1,1,1,1,1,1,1,"Spieler",2017,"Niedrig","Dunkelziffer","Zusammenfassung-der-BZgA-Studie-Glücksspielverhalten-und-Glücksspielsucht-in-Deutschland.-Ergebnisse-des-Surveys-2017-und-Trends"]
["Digitalisierung",null,"Offline verbal angegriffen / schwer beleidigt worden",null,0.25,25000,1,1,1,1,1,1,1,1,"erwachsene Internetnutzer",2018,"Sehr niedrig","Sehr niedrige Validität","https://www.bitkom.org/Presse/Presseinformation/Jeder-zweite-Internetnutzer-von-Cyberkriminalitaet-betroffen"]
["Digitalisierung",null,"Erleben, dass Daten gegen den eigenen Willen an Dritte weitergeben werden",null,0.23,23000,1,1,1,1,1,1,1,1,"erwachsene Internetnutzer",2017,"Sehr niedrig","Sehr niedrige Validität","https://de.reuters.com/article/deutschland-hacker-umfrage-idDEKCN1P3123"]
["Kaufen, Verträge, und Schulden",null,"Verspätung über 6 Minuten im Fernverkehr",null,0.22500000000000001,22500,1,1,1,1,1,1,1,1,"Bahnfahrer",2018,"Moderat","Verzerrungsrisiko","https://www.zugreiseblog.de/bahn-puenktlichkeit-statistik/"]
["Digitalisierung",null,"Persönliche digitale Daten gestohlen",null,0.21675833333333333,{"$f":"((0.43*44250)+23000*2)/3","v":21675.833333333332},1,1,1,1,1,1,1,1,"erwachsene Internetnutzer",2018,"Niedrig","Niedrige Validität","http://now.symassets.com/content/dam/norton/global/pdfs/norton_cybersecurity_insights/DE_NCSIR_2017.pdf","2018: 23% lt. Bitkom, doppelt gegenüber 2017 gewichtet","hängt von den 44,25% von Norton usw. ab","https://www.bitkom.org/Presse/Presseinformation/Jeder-zweite-Internetnutzer-von-Cyberkriminalitaet-betroffen"]
["Investitionen, Altersvorsorge & Armut",null,"Bingolotterie problematisch/krankhaft spielen",null,0.186,{"$f":"0.186*100000","v":18600},1,1,1,1,1,1,1,1,"Spieler",2017,"Niedrig","Dunkelziffer","Zusammenfassung-der-BZgA-Studie-Glücksspielverhalten-und-Glücksspielsucht-in-Deutschland.-Ergebnisse-des-Surveys-2017-und-Trends"]
["Versicherungen",null,"Leistungsfall der Rechtsschutzversicherung",null,0.18523000000000001,18523,1,1,1,1,1,1,1,1,"Versicherungsverträge",2018,"Moderat","Verzerrungsrisiko","Statistisches Jahrbuch der Versicherungswirtschaft",null,"Leistungen im Verhältnis zu den Verträgen"]
["Digitalisierung",null,"Erleben, dass ein Virus o.ä. das eigene Gerät kompromittiert",null,0.181425,{"$f":"0.41*44250","v":18142.5},1,1,1,1,1,1,1,1,"erwachsene Internetnutzer",2017,"Niedrig","Niedrige Validität","http://now.symassets.com/content/dam/norton/global/pdfs/norton_cybersecurity_insights/DE_NCSIR_2017.pdf",null,"hängt von den 44,25% von Norton usw. ab"]
["Investitionen, Altersvorsorge & Armut",null,"Totalverlust bei Crowdfunding",null,0.15,15000,1,1,1,1,1,1,1,1,"Investoren",2015,"Sehr niedrig","Alter der Daten","https://www.uni-trier.de/fileadmin/fb4/prof/VWL/OAR/Hornuf_Schmitt_-_Success_and_Failure_in_Equity_Crowdfunding.pdf"]
["Versicherungen",null,"Leistungsfall der Fahrzeugvollversicherung",null,0.14702999999999999,14703,1,1,1,1,1,1,1,1,"Versicherungsverträge",2018,"Moderat","Verzerrungsrisiko","Statistisches Jahrbuch der Versicherungswirtschaft",null,"Leistungen im Verhältnis zu den Verträgen"]
["Kaufen, Verträge, und Schulden",null,"Ein/e Produkt/Leistung reklamieren",null,0.14599999999999999,{"$f":"0.146*100000","v":14599.999999999998},1,1,1,1,1,1,1,1,"gekaufte Produkte",2016,"Niedrig","Niedrige externe Validität","https://reklamation.com/statistik/"]
["Digitalisierung",null,"Offline sexuell belästig worden",null,0.14000000000000001,14000,1,1,1,1,1,1,1,1,"erwachsene Internetnutzer",2018,"Sehr niedrig","Sehr niedrige Validität","https://www.bitkom.org/Presse/Presseinformation/Jeder-zweite-Internetnutzer-von-Cyberkriminalitaet-betroffen"]
["Versicherungen",null,"Leistungsfall der technischen Versicherung",null,0.13439999999999999,13440,1,1,1,1,1,1,1,1,"Versicherungsverträge",2018,"Moderat","Verzerrungsrisiko","Statistisches Jahrbuch der Versicherungswirtschaft",null,"Leistungen im Verhältnis zu den Verträgen"]
["Investitionen, Altersvorsorge & Armut",null,"Große Belastung durch Wohnkosten",null,0.13300000000000001,13300,1,1,1,1,1,1,1,1,"Haushalte",2017,"Moderat","Dunkelziffer","https://www.destatis.de/DE/ZahlenFakten/GesellschaftStaat/EinkommenKonsumLebensbedingungen/LebensbedingungenArmutsgefaehrdung/Tabellen/FinanzielleKapazitaeten_SILC.html"]
["Digitalisierung",null,"Erleben, dass der eigene Standort ungewollt abgefragt wird",null,0.13275000000000001,{"$f":"0.3*44250","v":13275},1,1,1,1,1,1,1,1,"erwachsene Internetnutzer",2017,"Niedrig","Niedrige Validität","http://now.symassets.com/content/dam/norton/global/pdfs/norton_cybersecurity_insights/DE_NCSIR_2017.pdf",null,"hängt von den 44,25% von Norton usw. ab"]
["Digitalisierung",null,"Erleben ungewöhnliche Aktivität im häuslichen W-Lan-Netz",null,0.12832499999999999,{"$f":"0.29*44250","v":12832.5},1,1,1,1,1,1,1,1,"erwachsene Internetnutzer",2017,"Niedrig","Niedrige Validität","http://now.symassets.com/content/dam/norton/global/pdfs/norton_cybersecurity_insights/DE_NCSIR_2017.pdf",null,"hängt von den 44,25% von Norton usw. ab"]
["Digitalisierung",null,"Erleben, dass ein Onlinepasswort geknackt wurde",null,0.12832499999999999,{"$f":"0.29*44250","v":12832.5},1,1,1,1,1,1,1,1,"erwachsene Internetnutzer",2017,"Niedrig","Niedrige Validität","http://now.symassets.com/content/dam/norton/global/pdfs/norton_cybersecurity_insights/DE_NCSIR_2017.pdf",null,"hängt von den 44,25% von Norton usw. ab"]
["Investitionen, Altersvorsorge & Armut",null,"In Spielbanken problematisch/krankhaft spielen",null,0.126,{"$f":"0.126*100000","v":12600},1,1,1,1,1,1,1,1,"Spieler",2017,"Niedrig","Dunkelziffer","Zusammenfassung-der-BZgA-Studie-Glücksspielverhalten-und-Glücksspielsucht-in-Deutschland.-Ergebnisse-des-Surveys-2017-und-Trends"]
["Digitalisierung",null,"Erleben, dass Fremde in das eigene W-Lan-Netz eindringen",null,0.12390000000000002,{"$f":"0.28*44250","v":12390.000000000002},1,1,1,1,1,1,1,1,"erwachsene Internetnutzer",2017,"Niedrig","Niedrige Validität","http://now.symassets.com/content/dam/norton/global/pdfs/norton_cybersecurity_insights/DE_NCSIR_2017.pdf",null,"hängt von den 44,25% von Norton usw. ab"]
["Digitalisierung",null,"Werden beim Onlineeinkauf betrogen",null,0.12,12000,1,1,1,1,1,1,1,1,"erwachsene Internetnutzer",2018,"Niedrig","Niedrige Validität","http://now.symassets.com/content/dam/norton/global/pdfs/norton_cybersecurity_insights/DE_NCSIR_2017.pdf",null,"hängt von den 44,25% von Norton usw. ab","Bitkom: 2018 wären es 12% aller Internetnutzer: https://de.reuters.com/article/deutschland-hacker-umfrage-idDEKCN1P3123    ","https://www.bitkom.org/Presse/Presseinformation/Jeder-zweite-Internetnutzer-von-Cyberkriminalitaet-betroffen"]
["Versicherungen",null,"Leistungsfall der Wohngebäudeversicherung",null,0.11846,11846,1,1,1,1,1,1,1,1,"Versicherungsverträge",2018,"Moderat","Verzerrungsrisiko","Statistisches Jahrbuch der Versicherungswirtschaft",null,"Leistungen im Verhältnis zu den Verträgen"]
["Digitalisierung",null,"Erleben digitalen Kreditkarten- bzw. Kontodatenbetrug",null,0.11168333333333334,{"$f":"(0.26*44250+11000*2)/3","v":11168.333333333334},1,1,1,1,1,1,1,1,"erwachsene Internetnutzer",2018,"Niedrig","Niedrige Validität","http://now.symassets.com/content/dam/norton/global/pdfs/norton_cybersecurity_insights/DE_NCSIR_2017.pdf","2018: 11% lt. Bitkom, doppelt gegenüber 2017 gewichtet","hängt von den 44,25% von Norton usw. ab","https://www.bitkom.org/Presse/Presseinformation/Jeder-zweite-Internetnutzer-von-Cyberkriminalitaet-betroffen"]
["Investitionen, Altersvorsorge & Armut",null,"Verluste mit Immobilien",null,{"$f":"F35/100000","v":0.111},11100,1,1,1,1,1,1,1,1,"Immobilieninvestoren",2011,"Sehr niedrig","Alter der Daten","Bach et al, 2014 _ DIW","Renditen von Immobilieninvestitionen privater Anleger in der PHF 2010/2011",null,"https://www.diw.de/documents/publikationen/73/diw_01.c.488172.de/diwkompakt_2014-089.pdf"]
["Digitalisierung",null,"Erleben, dass sich jemand zu Emails/sozialen Netzwerken Zugang verschafft",null,0.110625,{"$f":"0.25*44250","v":11062.5},1,1,1,1,1,1,1,1,"erwachsene Internetnutzer",2017,"Niedrig","Niedrige Validität","http://now.symassets.com/content/dam/norton/global/pdfs/norton_cybersecurity_insights/DE_NCSIR_2017.pdf",null,"hängt von den 44,25% von Norton usw. ab"]
["Digitalisierung",null,"Erleben, dass Zahlungsdaten vom Telefon kopiert werden",null,0.1062,{"$f":"0.24*44250","v":10620},1,1,1,1,1,1,1,1,"erwachsene Internetnutzer",2017,"Niedrig","Niedrige Validität","http://now.symassets.com/content/dam/norton/global/pdfs/norton_cybersecurity_insights/DE_NCSIR_2017.pdf",null,"hängt von den 44,25% von Norton usw. ab"]
["Digitalisierung",null,"Erleben, dass Zahlungsdaten nach Onlineeinkauf missbraucht werden",null,0.101775,{"$f":"0.23*44250","v":10177.5},1,1,1,1,1,1,1,1,"erwachsene Internetnutzer",2017,"Niedrig","Niedrige Validität","http://now.symassets.com/content/dam/norton/global/pdfs/norton_cybersecurity_insights/DE_NCSIR_2017.pdf",null,"hängt von den 44,25% von Norton usw. ab"]
["Digitalisierung",null,"Online verbal angegriffen / schwer beleidigt worden",null,0.1,10000,1,1,1,1,1,1,1,1,"erwachsene Internetnutzer",2018,"Sehr niedrig","Sehr niedrige Validität","https://www.bitkom.org/Presse/Presseinformation/Jeder-zweite-Internetnutzer-von-Cyberkriminalitaet-betroffen"]
["Kaufen, Verträge, und Schulden",null,"Überschuldet",null,0.1,10000,1,1,1,1,1,1,1,1,"Verbraucher",2018,"Niedrig","Individuell stark beinflussbar","https://www.creditreform.de/fileadmin/user_upload/crefo/download_de/news_termine/wirtschaftsforschung/schuldneratlas/Analyse_SchuldnerAtlas_2018.pdf"]
["Investitionen, Altersvorsorge & Armut",null,"Erhalten staatliche soziale Unterstützungsleistungen",null,9.5000000000000001E-2,9500,1,1,1,1,1,1,1,1,"Verbraucher",2017,"Moderat","Individuell stark beinflussbar","https://rp-online.de/politik/deutschland/7-6-millionen-menschen-erhalten-mindestsicherung_aid-33912859",null,"Hartz IV, Sozialhilfe, Zuschüsse zur Rente: In Deutschland sind acht Millionen Menschen auf Hilfe vom Staat angewiesen. "]
["Digitalisierung",null,"Bonität schränkt die möglichen Zahlungsweisen beim Onlineeinkauf ein",null,9.4E-2,9400,1,1,1,1,1,1,1,1,"Internetnutzer",2017,"Sehr niedrig","Niedrige Validität, Verzerrungsrisiko","Schufa-Report 2018"]
["Versicherungen",null,"Leistungsfall einer Kraftfahrversicherung",null,8.1089999999999995E-2,8109,1,1,1,1,1,1,1,1,"Versicherungsverträge",2018,"Moderat","Verzerrungsrisiko","Statistisches Jahrbuch der Versicherungswirtschaft",null,"Leistungen im Verhältnis zu den Verträgen"]
["Digitalisierung",null,"Online sexuell belästig worden",null,0.08,8000,1,1,1,1,1,1,1,1,"erwachsene Internetnutzer",2018,"Sehr niedrig","Sehr niedrige Validität","https://www.bitkom.org/Presse/Presseinformation/Jeder-zweite-Internetnutzer-von-Cyberkriminalitaet-betroffen"]
["Investitionen, Altersvorsorge & Armut",null,"An Geldspielautomaten problematisch/krankhaft spielen",null,7.9000000000000001E-2,{"$f":"0.079*100000","v":7900},1,1,1,1,1,1,1,1,"Spieler",2017,"Niedrig","Dunkelziffer","Zusammenfassung-der-BZgA-Studie-Glücksspielverhalten-und-Glücksspielsucht-in-Deutschland.-Ergebnisse-des-Surveys-2017-und-Trends"]
["Digitalisierung",null,"Erleben, dass der eigene Computer übernommen wird (ransomware)",null,7.5225000000000014E-2,{"$f":"0.17*44250","v":7522.5000000000009},1,1,1,1,1,1,1,1,"erwachsene Internetnutzer",2017,"Niedrig","Niedrige Validität","http://now.symassets.com/content/dam/norton/global/pdfs/norton_cybersecurity_insights/DE_NCSIR_2017.pdf","17% Norton","hängt von den 44,25% von Norton usw. ab"]
["Versicherungen",null,"Leistungsfall einer Schadens-/Unfallversicherung",null,7.492E-2,7492,1,1,1,1,1,1,1,1,"Versicherungsverträge",2018,"Moderat","Verzerrungsrisiko","Statistisches Jahrbuch der Versicherungswirtschaft",null,"Leistungen im Verhältnis zu den Verträgen"]
["Versicherungen",null,"Leistungsfall einer Sachversicherung",null,7.4770000000000003E-2,7477,1,1,1,1,1,1,1,1,"Versicherungsverträge",2018,"Moderat","Verzerrungsrisiko","Statistisches Jahrbuch der Versicherungswirtschaft",null,"Leistungen im Verhältnis zu den Verträgen"]
["Kaufen, Verträge, und Schulden",null,"Anruf zum Spezialtarif",null,7.1000000000000008E-2,{"$f":"(100-64.5-28.4)/100*100000","v":7100.0000000000009},1,1,1,1,1,1,1,1,"Serviceanrufe",2017,"Sehr niedrig","Niedrige externe Validität","VATM_TK-Marktstudie-2018_091018_f"]
["Kaufen, Verträge, und Schulden",null,"Kreditkartenschulden",null,7.0000000000000007E-2,7000,1,1,1,1,1,1,1,1,"Verbraucher",2014,"Sehr niedrig","Alter der Daten","https://www.google.com/url?sa=t&rct=j&q=&esrc=s&source=web&cd=2&ved=2ahUKEwj59o6a3pffAhUQp4sKHTghB0AQFjABegQICBAC&url=https%3A%2F%2Fwww.presseportal.de%2Fdownload%2Fdocument%2F312756-umfrageergebnisse-dispo-nutzung-2015.pdf&usg=AOvVaw29t51ca1TN77Eh8-BRGgkP","7% in Deutschland","Befragte: 12.743 Personen in 12 Europäischen Ländern + Türkei","Zahlen Olga: 6,8 Millionen","\"Nach dem neuen Schuldneratlas gelten zum Stichtag 1. Oktober 2016 mehr als 6,8 Millionen Bürger über 18 Jahre in Deutschland als Personen, die „nachhaltige Zahlungsstörungen“ aufweisen.\"","https://www.welt.de/finanzen/article159415757/So-verschuldet-sind-die-Deutschen.html"]
["Digitalisierung",null,"Opfer von digitalem Identitätsdiebstahl",null,6.8587499999999996E-2,{"$f":"0.155*44250","v":6858.75},1,1,1,1,1,1,1,1,"erwachsene Internetnutzer",2017,"Niedrig","Niedrige Validität","http://now.symassets.com/content/dam/norton/global/pdfs/norton_cybersecurity_insights/DE_NCSIR_2017.pdf","19% Norton, 12% Schufa beide 2017 - gleichwertig","hängt von den 44,25% von Norton usw. ab"]
["Versicherungen",null,"Leistungsfall der privaten Sachversicherung",null,6.6369999999999998E-2,6637,1,1,1,1,1,1,1,1,"Versicherungsverträge",2018,"Moderat","Verzerrungsrisiko","Statistisches Jahrbuch der Versicherungswirtschaft",null,"Leistungen im Verhältnis zu den Verträgen"]
["Versicherungen",null,"Leistungsfall der Kraftfahrzeug-Haftpflichtversicherung",null,6.3119999999999996E-2,6312,1,1,1,1,1,1,1,1,"Versicherungsverträge",2018,"Moderat","Verzerrungsrisiko","Statistisches Jahrbuch der Versicherungswirtschaft",null,"Leistungen im Verhältnis zu den Verträgen"]
["Digitalisierung",null,"Werden vom digitalen technischen Support betrogen",null,6.1950000000000012E-2,{"$f":"0.14*44250","v":6195.0000000000009},1,1,1,1,1,1,1,1,"erwachsene Internetnutzer",2017,"Niedrig","Niedrige Validität","http://now.symassets.com/content/dam/norton/global/pdfs/norton_cybersecurity_insights/DE_NCSIR_2017.pdf",null,"hängt von den 44,25% von Norton usw. ab"]
["Kaufen, Verträge, und Schulden",null,"Ein Produkt/Leistung zurückgeben/-weisen",null,6.0999999999999999E-2,{"$f":"0.061*100000","v":6100},1,1,1,1,1,1,1,1,"gekaufte Produkte",2016,"Niedrig","Niedrige externe Validität","https://reklamation.com/statistik/"]
["Investitionen, Altersvorsorge & Armut",null,"Oddset-Spiele problematisch/krankhaft spielen",null,5.8999999999999997E-2,{"$f":"0.059*100000","v":5900},1,1,1,1,1,1,1,1,"Spieler",2017,"Niedrig","Dunkelziffer","Zusammenfassung-der-BZgA-Studie-Glücksspielverhalten-und-Glücksspielsucht-in-Deutschland.-Ergebnisse-des-Surveys-2017-und-Trends"]
["Versicherungen",null,"Leistungsfall der Fahrzeugteilversicherung",null,5.8500000000000003E-2,5850,1,1,1,1,1,1,1,1,"Versicherungsverträge",2018,"Moderat","Verzerrungsrisiko","Statistisches Jahrbuch der Versicherungswirtschaft",null,"Leistungen im Verhältnis zu den Verträgen"]
["Digitalisierung",null,"Erleben unauthorisierten Zugriff auf einem Smarthome-Gerät",null,5.7525E-2,{"$f":"0.13*44250","v":5752.5},1,1,1,1,1,1,1,1,"erwachsene Internetnutzer",2017,"Niedrig","Niedrige Validität","http://now.symassets.com/content/dam/norton/global/pdfs/norton_cybersecurity_insights/DE_NCSIR_2017.pdf",null,"hängt von den 44,25% von Norton usw. ab"]
["Kaufen, Verträge, und Schulden",null,"Verspätung über 6 Minuten im Nahverkehr",null,5.5E-2,5500,1,1,1,1,1,1,1,1,"Bahnfahrer",2018,"Moderat","Verzerrungsrisiko","https://www.zugreiseblog.de/bahn-puenktlichkeit-statistik/"]
["Versicherungen",null,"Leistungsfall der allgemeinen Haftpflichtversicherung",null,5.321E-2,5321,1,1,1,1,1,1,1,1,"Versicherungsverträge",2018,"Moderat","Verzerrungsrisiko","Statistisches Jahrbuch der Versicherungswirtschaft",null,"Leistungen im Verhältnis zu den Verträgen"]
["Digitalisierung",null,"Beruflich benachteiligt aufgrund von Texten unter dem eigenen Namen",null,5.3100000000000001E-2,{"$f":"0.12*44250","v":5310},1,1,1,1,1,1,1,1,"erwachsene Internetnutzer",2017,"Niedrig","Niedrige Validität","http://now.symassets.com/content/dam/norton/global/pdfs/norton_cybersecurity_insights/DE_NCSIR_2017.pdf",null,"hängt von den 44,25% von Norton usw. ab"]
["Investitionen, Altersvorsorge & Armut",null,"Miete oder Nebenkosten nicht leisten können",null,4.3999999999999997E-2,4400,1,1,1,1,1,1,1,1,"Haushalte",2017,"Moderat","Dunkelziffer","https://www.destatis.de/DE/ZahlenFakten/GesellschaftStaat/EinkommenKonsumLebensbedingungen/LebensbedingungenArmutsgefaehrdung/Tabellen/Eurostat_MaterielleEntbehrung_SILC.html","Der Haushalt kann sich nicht leisten rechtzeitiges Bezahlen der Miete oder der Rechnungen für Versorgungs­leistungen“\n"]
["Versicherungen",null,"Leistungsfall der Schutzbriefversicherung",null,3.8920000000000003E-2,3892,1,1,1,1,1,1,1,1,"Versicherungsverträge",2018,"Moderat","Verzerrungsrisiko","Statistisches Jahrbuch der Versicherungswirtschaft",null,"Leistungen im Verhältnis zu den Verträgen"]
["Versicherungen",null,"Leistungsfall der Hausratversicherung",null,3.7530000000000001E-2,3753,1,1,1,1,1,1,1,1,"Versicherungsverträge",2018,"Moderat","Verzerrungsrisiko","Statistisches Jahrbuch der Versicherungswirtschaft",null,"Leistungen im Verhältnis zu den Verträgen"]
["Investitionen, Altersvorsorge & Armut",null,"Online-Sportwetten problematisch/krankhaft spielen",null,3.6999999999999998E-2,{"$f":"0.037*100000","v":3700},1,1,1,1,1,1,1,1,"Spieler",2017,"Niedrig","Dunkelziffer","Zusammenfassung-der-BZgA-Studie-Glücksspielverhalten-und-Glücksspielsucht-in-Deutschland.-Ergebnisse-des-Surveys-2017-und-Trends"]
["Versicherungen",null,"Leistungsfall der privaten Unfallversicherung",null,3.1850000000000003E-2,3185,1,1,1,1,1,1,1,1,"Versicherungsverträge",2018,"Moderat","Verzerrungsrisiko","Statistisches Jahrbuch der Versicherungswirtschaft",null,"Leistungen im Verhältnis zu den Verträgen"]
["Digitalisierung",null,"Erleben Privatsphäreverletzungen",null,{"$f":"F67/100000","v":0.03},3000,1,1,1,1,1,1,1,1,"erwachsene Internetnutzer",2015,"Niedrig","Niedrige Validität","http://appsso.eurostat.ec.europa.eu/nui/show.do?query=BOOKMARK_DS-132957_QID_56703153_UID_-3F171EB0&layout=TIME,C,X,0;GEO,L,Y,0;INDIC_IS,L,Z,0;IND_TYPE,L,Z,1;UNIT,L,Z,2;INDICATORS,C,Z,3;&zSelection=DS-132957IND_TYPE,IND_TOTAL;DS-132957INDIC_IS,I_SECPIF1;DS-132957INDICATORS,OBS_FLAG;DS-132957UNIT,PC_IND_ILT12;&rankName1=UNIT_1_2_-1_2&rankName2=INDICATORS_1_2_-1_2&rankName3=INDIC-IS_1_2_-1_2&rankName4=IND-TYPE_1_2_-1_2&rankName5=TIME_1_0_0_0&rankName6=GEO_1_2_0_1&sortC=ASC_-1_FIRST&rStp=&cStp=&rDCh=&cDCh=&rDM=true&cDM=true&footnes=false&empty=false&wai=false&time_mode=NONE&time_most_recent=false&lang=EN&cfo=%23%23%23%2C%23%23%23.%23%23%23"]
["Investitionen, Altersvorsorge & Armut",null,"Sportwetten problematisch/krankhaft spielen",null,0.03,{"$f":"0.03*100000","v":3000},1,1,1,1,1,1,1,1,"Spieler",2017,"Niedrig","Dunkelziffer","Zusammenfassung-der-BZgA-Studie-Glücksspielverhalten-und-Glücksspielsucht-in-Deutschland.-Ergebnisse-des-Surveys-2017-und-Trends"]
["Investitionen, Altersvorsorge & Armut",null,"Klassenlotterien problematisch/krankhaft spielen",null,2.5000000000000001E-2,{"$f":"0.025*100000","v":2500},1,1,1,1,1,1,1,1,"Spieler",2017,"Niedrig","Dunkelziffer","Zusammenfassung-der-BZgA-Studie-Glücksspielverhalten-und-Glücksspielsucht-in-Deutschland.-Ergebnisse-des-Surveys-2017-und-Trends","7188 Menschen ","Aklgemeine Glücksspiele S.107 n=11501\nDagegen schätzen im Jahr 2015 62,5 %, dass sie einen Verlust erlitten haben. Auch die hier angege- benen Beträge schwanken erheblich: Im Median betragen sie 50 Euro, IQB = 20 bis 150 €). 2013 betrug dieser Anteil 64,7 % (Median: 60 Euro, IQB = 20 bis 200 €). Bei 27,1 % ist die Bilanz im Jahr 2015 nach eigener Einschätzung ausgeglichen (2013: 24,7 %)."]
["Investitionen, Altersvorsorge & Armut",null,"Toto problematisch/krankhaft spielen",null,2.5000000000000001E-2,{"$f":"0.025*100000","v":2500},1,1,1,1,1,1,1,1,"Spieler",2017,"Niedrig","Dunkelziffer","Zusammenfassung-der-BZgA-Studie-Glücksspielverhalten-und-Glücksspielsucht-in-Deutschland.-Ergebnisse-des-Surveys-2017-und-Trends"]
["Digitalisierung",null,"Persönliche analoge Daten gestohlen",null,0.02,{"$f":"2000","v":2000},1,1,1,1,1,1,1,1,"erwachsene Internetnutzer",2018,"Niedrig","Niedrige Validität","https://www.bitkom.org/Presse/Presseinformation/Jeder-zweite-Internetnutzer-von-Cyberkriminalitaet-betroffen","2018: Bitkom"]
["Investitionen, Altersvorsorge & Armut",null,"6 aus 49 problematisch/krankhaft spielen",null,0.02,{"$f":"0.02*100000","v":2000},1,1,1,1,1,1,1,1,"Spieler",2017,"Niedrig","Dunkelziffer","Zusammenfassung-der-BZgA-Studie-Glücksspielverhalten-und-Glücksspielsucht-in-Deutschland.-Ergebnisse-des-Surveys-2017-und-Trends"]
["Digitalisierung",null,"Geldverlust aufgrund Identitätsdiebstahl",null,1.7305749999999998E-2,{"$f":"0.29*5967.5","v":1730.5749999999998},1,1,1,1,1,1,1,1,"Internetnutzer",2017,"Sehr niedrig","Niedrige Validität","https://www.pwc.de/de/handel-und-konsumguter/assets/cyber-security-identitaetsdiebstahl-2016.pdf",null,"hängt von den 44,25% von Norton usw. ab"]
["Digitalisierung",null,"Rechnungen für Einkäufe erhalten, die man nie getätigt hat, aufgrund Identitätsdiebstahl",null,1.6112250000000002E-2,{"$f":"0.27*5967.5","v":1611.2250000000001},1,1,1,1,1,1,1,1,"Internetnutzer",2017,"Sehr niedrig","Niedrige Validität","https://www.pwc.de/de/handel-und-konsumguter/assets/cyber-security-identitaetsdiebstahl-2016.pdf",null,"hängt von den 44,25% von Norton usw. ab"]
["Kaufen, Verträge, und Schulden",null,"Mehr als 3h Verspätung",null,1.4999999999999999E-2,{"$f":"0.015*100000","v":1500},1,1,1,1,1,1,1,1,"Flügen",2017,"Niedrig","Niedrige externe Validität","https://www.reisereporter.de/artikel/1947-flugausfaelle-flugverspaetung-taeglich-69-faelle-probleme-mit-fluegen"]
["Investitionen, Altersvorsorge & Armut",null,"Erhalten Grundsicherung",null,1.3227848101265823E-2,{"$f":"1.1/(7.9/0.095)*100*1000","v":1322.7848101265822},1,1,1,1,1,1,1,1,"Verbraucher",2017,"Moderat","Individuell stark beinflussbar","https://rp-online.de/politik/deutschland/7-6-millionen-menschen-erhalten-mindestsicherung_aid-33912859"]
["Investitionen, Altersvorsorge & Armut",null,"Eurojackpot problematisch/krankhaft spielen",null,1.0999999999999999E-2,{"$f":"0.011*100000","v":1100},1,1,1,1,1,1,1,1,"Spieler",2017,"Niedrig","Dunkelziffer","Zusammenfassung-der-BZgA-Studie-Glücksspielverhalten-und-Glücksspielsucht-in-Deutschland.-Ergebnisse-des-Surveys-2017-und-Trends"]
["Digitalisierung",null,"Abmahnungen von Rechtsanwälten aufgrund Identitätsdiebstahl",null,1.0144750000000001E-2,{"$f":"0.17*5967.5","v":1014.475},1,1,1,1,1,1,1,1,"Internetnutzer",2017,"Sehr niedrig","Niedrige Validität","https://www.pwc.de/de/handel-und-konsumguter/assets/cyber-security-identitaetsdiebstahl-2016.pdf",null,"hängt von den 44,25% von Norton usw. ab"]
["Digitalisierung",null,"Opfer von analogem Identitätsdiebstahl",null,0.01,1000,1,1,1,1,1,1,1,1,"erwachsene Internetnutzer",2018,"Niedrig","Niedrige Validität","https://www.bitkom.org/Presse/Presseinformation/Jeder-zweite-Internetnutzer-von-Cyberkriminalitaet-betroffen"]
["Digitalisierung",null,"Erleben analogen Kreditkarten- bzw. Kontodatenbetrug",null,0.01,{"$f":"1000","v":1000},1,1,1,1,1,1,1,1,"erwachsene Internetnutzer",2018,"Niedrig","Niedrige Validität","https://www.bitkom.org/Presse/Presseinformation/Jeder-zweite-Internetnutzer-von-Cyberkriminalitaet-betroffen","2018: 1% lt. Bitkom"]
["Investitionen, Altersvorsorge & Armut",null,"Glücksspirale problematisch/krankhaft spielen",null,0.01,{"$f":"0.01*100000","v":1000},1,1,1,1,1,1,1,1,"Spieler",2017,"Niedrig","Dunkelziffer","Zusammenfassung-der-BZgA-Studie-Glücksspielverhalten-und-Glücksspielsucht-in-Deutschland.-Ergebnisse-des-Surveys-2017-und-Trends"]
["Investitionen, Altersvorsorge & Armut",null,"Problematisches Spielverhalten",null,8.6999999999999994E-3,870,1,1,1,1,1,1,1,1,"Verbraucher",2017,"Moderat","Dunkelziffer","https://lssh.de/wp-content/uploads/2018/07/Zusammenfassung-der-BZgA-Studie-Gl%C3%BCcksspielverhalten-und-Gl%C3%BCcksspielsucht-in-Deutschland.-Ergebnisse-des-Surveys-2017-und-Trends.pdf "]
["Kaufen, Verträge, und Schulden",null,"Fluggepäck beschädigt/verloren",null,8.0599999999999995E-3,{"$f":"0.00806*100000","v":806},1,1,1,1,1,1,1,1,"Flügen",2016,"Moderat","Verzerrungsrisiko","http://comms.sita.aero/rs/089-zse-857/images/baggage-report-2017.pdf"]
["Investitionen, Altersvorsorge & Armut",null,"Bestreiten Lebensunterhalt durch eigene Kapitaleinnahmen",null,8.0000000000000002E-3,800,1,1,1,1,1,1,1,1,"Verbraucher",2015,"Moderat","Reliabilität eingeschränkt","https://www.destatis.de/DE/PresseService/Presse/Pressemitteilungen/2016/07/PD16_243_122.html"]
["Investitionen, Altersvorsorge & Armut",null,"Fernsehlotterie problematisch/krankhaft spielen",null,4.0000000000000001E-3,{"$f":"0.004*100000","v":400},1,1,1,1,1,1,1,1,"Spieler",2017,"Niedrig","Dunkelziffer","Zusammenfassung-der-BZgA-Studie-Glücksspielverhalten-und-Glücksspielsucht-in-Deutschland.-Ergebnisse-des-Surveys-2017-und-Trends"]
["Investitionen, Altersvorsorge & Armut",null,"Süchtig nach Glücksspiel",null,3.0999999999999999E-3,310,1,1,1,1,1,1,1,1,"Verbraucher",2017,"Moderat","Dunkelziffer","https://lssh.de/wp-content/uploads/2018/07/Zusammenfassung-der-BZgA-Studie-Gl%C3%BCcksspielverhalten-und-Gl%C3%BCcksspielsucht-in-Deutschland.-Ergebnisse-des-Surveys-2017-und-Trends.pdf "]
["Digitalisierung",null,"Kreditwürdigkeit vom Wohnort bestimmt",null,3.0000000000000001E-3,300,1,1,1,1,1,1,1,1,"Verbraucher",2017,"Niedrig","Verzerrungsrisiko","Schufa-Report 2018"]
["Kaufen, Verträge, und Schulden",null,"Beschweren sich über unerlaubte Telefonwerbung",null,1.4133753375337535E-3,{"$f":"52342*12/11/40400000*100000","v":141.33753375337534},1,1,1,1,1,1,1,1,"Haushalte",2017,"Sehr niedrig","Niedrige externe Validität","https://www.bundesnetzagentur.de/SharedDocs/Pressemitteilungen/DE/2017/28122017_Telekommunikation.html"]
["Haushalt",null,"Erkrankungen durch Mikroorganismen in Lebensmitteln",null,1.2195121951219512E-3,{"$f":"100000/82000000*100000","v":121.95121951219512},1,1,1,1,1,1,1,1,"Verbraucher",2017,"Sehr niedrig","Dunkelziffer","https://www.bfr.bund.de/cm/350/verbrauchertipps_schutz_vor_lebensmittelinfektionen_im_privathaushalt.pdf"]
["Kaufen, Verträge, und Schulden",null,"Verbraucherinsolvenz",null,1.0419710144927536E-3,{"$f":"71896/69000000*100000","v":104.19710144927537},1,1,1,1,1,1,1,1,"Verbraucher",2017,"Niedrig","Niedrige Validität","https://de.statista.com/statistik/daten/studie/150565/umfrage/privatinsolvenzen-in-deutschland-seit-2000/","94079 in 2017 in Deutschland, Verbraucherinsolvenz  71.896 in 2017, Selbstständigen-Insolvenz 19.881 in 2017",null,"Schufa-Report 2018"]
["Versicherungen",null,"Leistungsfall der Kraftfahrtunfallversicherung",null,5.1000000000000004E-4,51,1,1,1,1,1,1,1,1,"Versicherungsverträge",2018,"Moderat","Verzerrungsrisiko","Statistisches Jahrbuch der Versicherungswirtschaft",null,"Leistungen im Verhältnis zu den Verträgen"]
["Investitionen, Altersvorsorge & Armut",null,"Opfer von Betrug/Untreue bei Kapitalanlage",null,1.6685507246376813E-4,{"$f":"11513/69000000*100000","v":16.685507246376812},1,1,1,1,1,1,1,1,"Verbraucher",2017,"Hoch",null,"BKA Bundeslagebild 2017","5-Jahresschnitt",null,"https://www.bka.de/SharedDocs/Downloads/DE/Publikationen/JahresberichteUndLagebilder/Wirtschaftskriminalitaet/wirtschaftskriminalitaetBundeslagebild2017.pdf?__blob=publicationFile&v=2 "]
["Digitalisierung",null,"Erleben EC-Kartendiebstahl mit Betrug (Debitkarten)",null,1.5004347826086956E-4,{"$f":"10353/69000000*100000","v":15.004347826086956},1,1,1,1,1,1,1,1,"Verbraucher",2017,"Moderat","Individuell stark beinflussbar","https://www.focus.de/finanzen/news/2-2-millionen-euro-schaden-wieder-mehr-betrug-mit-bankkarten-branche-ohne-sorge_id_8294582.html",null,"Hier jedoch sind die aktuellen Zahlen rückläufig: 10.353 Fälle wurden gezählt. "]
["Verträge",null,"Schlichtungsantrag im Konfliktfall",null,9.7173913043478266E-5,{"$f":"447/4600000*100000","v":9.7173913043478262},1,1,1,1,1,1,1,1,"Stromanbieter-Wechselversuche",2016,"Niedrig","Sehr niedrige Validität","https://www.schlichtungsstelle-energie.de/presse/presseartikel/taetigkeitsbericht-der-schlichtungsstelle-energie-39.html;  Bericht der Bundesnetzagentur 2017",null,"447 Beschwerde bzw. Schlichtungsanträge wegen Lieferantenwechsel 2016 s. 7\nhttps://www.schlichtungsstelle-energie.de/presse/presseartikel/taetigkeitsbericht-der-schlichtungsstelle-energie-39.html\n\n4,6 Mio. Lieferantenwechseln 2016\nhttps://www.bundesnetzagentur.de/SharedDocs/Downloads/DE/Allgemeines/Bundesnetzagentur/Publikationen/Berichte/2018/JB2017.pdf?__blob=publicationFile&v=2\n"]

{"sheet":"Evidenz fehlt","index":7,"n_rows":7,"n_cols":15,"rows_kept":7,"cut":false,"hidden":false,"merged":[]}
["Investitionen, Altersvorsorge & Armut","Grauer Kapitalmarkt","Armut, Verluste","Altersvorsorge, Altersarmut",null,"Wie viele Menschen sind \"Opfer\" vom grauen Kapitalmarkt",null,"(7,9/0,095)",{"$nulls":4},"\"Zur Anzahl und Höhe der Schadensfälle durch Kapitalan- lagen im Grauen Kapitalmarkt gibt es keine zuverlässigen Zahlen\"","Am Grauen Kapitalmarkt entstehen nach Angaben des Deutschen Anlegerschutzbundes (DASB) jedes Jahr Schäden in Höhe von 20 bis 30 Milliarden Euro.","https://www.handelsblatt.com/finanzen/anlagestrategie/trends/grauer-kapitalmarkt-welchen-schaden-betrueger-anrichten/3525674.html"]
["Investitionen, Altersvorsorge & Armut","Fonds","Armut, Verluste","Altersvorsorge, Altersarmut","Ministry","Wie viele Menschen haben Geld verloren, weil sie in Fonds investierten?"]
["Investitionen, Altersvorsorge & Armut","Fonds","Armut, Verluste","Altersvorsorge, Altersarmut",null,"Wie viele Menschen sind die die Armut abgerutscht/haben alles verloren, weil sie in Fonds investierten?"]
["Investitionen, Altersvorsorge & Armut","Investitionsrisiken","Armut, Verluste","Altersvorsorge, Altersarmut","Ministry","Wie viele Menschen haben Geld verloren, weil sie im Internet investierten?"]
["Investitionen, Altersvorsorge & Armut","Investitionsrisiken","Armut, Verluste","Altersvorsorge, Altersarmut",null,"Wie viele Menschen sind die die Armut abgerutscht/haben alles verloren, weil sie im Internet investierten?"]
["Investitionen, Altersvorsorge & Armut","ETFs","Armut, Verluste","Altersvorsorge, Altersarmut","Ministry","Wie viele Menschen haben Geld verloren, weil sie in ETFs investierten?"]
["Investitionen, Altersvorsorge & Armut","ETFs","Armut, Verluste","Altersvorsorge, Altersarmut",null,"Wie viele Menschen sind die die Armut abgerutscht/haben alles verloren, weil sie in ETFs investierten?"]